{"text_format":"1","workbook":"xlsx","n_sheets":13,"sheets":["Invulinstructie","Inleesinstructie","Inleesblad","Totaalblad","Tussenblad","Overzicht gemeenten","Versiebeheer","begin","Gemeente x","einde","Categorie","Productcodes","Versie"],"not_rendered":{"charts":0,"images":3,"macros":1,"external_links":3,"defined_names":21,"comments":0,"pivot_tables":0},"unopened":[],"bounds":{"document_bytes":16777216,"sheet_cells":100000,"rows_first":2000,"rows_last":500,"rows_between":2000,"halvings":0,"cell_chars":16384,"cell_head_chars":4096},"cells_cut":0,"cells_raw":0,"read":"whole","date_system":"1900"}

{"sheet":"Invulinstructie","index":0,"n_rows":27,"n_cols":2,"rows_kept":27,"cut":false,"hidden":false,"merged":[]}
[null,"Invulinstructie Financiële productieverantwoording WMO"]
[]
[null,"WMO INVULINSTRUCTIE "]
[]
[null,"Algemeen"]
[null,"Dit formulier is bedoeld voor de financiële verantwoording van zorgaanbieders uit hoofde van de Wmo. De financiële productieverantwoording bevat de definitieve opgave van de gerealiseerde productie 2022 en is onlosmakelijk verbonden aan het “Algemeen accountantsprotocol financiële productieverantwoording WMO en Jeugdwet 2022”.\n\nVoor zover in dit formulier wordt gesproken over ‘zorgaanbieder’ wordt hiermee bedoeld: alle onderdelen van een beherend rechtspersoon die samen opgenomen zijn in het gesloten contract met betreffende gemeente(n). Voor de definitie van 'gemeente' zie de definitielijst van het “Algemeen accountantsprotocol 2022 financiële productieverantwoording Wmo en Jeugdwet”.\n\nEen boekjaar wordt gelijk gesteld aan het kalenderjaar. Wanneer sprake is van zorgtrajecten die niet per einde van het boekjaar kunnen worden afgesloten, geldt dat de financiële productieverantwoording tevens de financiële waarde van fictief afgesloten zorgtrajecten omvat die per 31 december 2022 onderhanden zijn. In de verantwoording van deze zorgtrajecten neemt u als productie mee de reeds in 2022 geleverde, maar nog niet afgesloten ondersteuning en/of zorg. Dit doet u door bij ‘aantal’ het aantal gerealiseerde zorgtrajecten in te vullen, inclusief de som van de naar rato verleende zorg in nog niet afgesloten zorgtrajecten. Heeft u bijvoorbeeld 10 zorgtrajecten in het boekjaar gestart en volledig afgerond en 9 half, dan verantwoordt u 14,5 trajecten. \n\nHet formulier moet van voor naar achteren en van boven naar beneden worden ingevuld. Alle door u in te vullen velden zijn ‘blauw gearceerd’. Witte cellen geven uitkomsten van berekeningen weer. \n\nU dient de tabbladen “Totaalblad”, “Overzicht Gemeenten” en de Gemeente-tabbladen op te slaan als PDF om ze te kunnen tekenen en/of te waarmerken. Het is afhankelijk per gemeente of het document moet worden aangeleverd. Hieronder wordt, indien van toepassing, per tabblad een toelichting gegeven.  "]
[null,"Tabblad ‘Totaalblad’"]
[null,"Het tabblad ‘Totaalblad’ geeft de totaal gerealiseerde productie uit hoofde van de Wmo weer waarvan gemeenten een accountantscontrole voorschrijven. Als de coulance regeling van toepassing is verklaard voor een zorgaanbieder, hoeft de accountant de verantwoording niet te ondertekenen. De naam en datum die ingevuld worden op het tabblad “Totaal Overzicht”, worden overgenomen op de tabbladen “Overzicht Gemeenten” en de tabbladen van de aangemaakte gemeentes.\n"]
[null,"Tabblad ‘Overzicht gemeenten’"]
[null,"In dit tabblad geeft u aan voor welke gemeente(n) u uw geleverde productie uit hoofde van de Wmo wilt verantwoorden. Heeft u met een gemeente ook afspraken binnen het domein Jeugdwet, dan gebruikt u daarvoor het verantwoordingsformat Jeugdwet. In de financiële productieverantwoording op totaalniveau per domein wordt alleen de productie Wmo verwerkt die betrekking heeft op de gemeenten die een accountantscontrole voorschrijven. De accountant waarmerkt dit overzicht en verwijst er naar in zijn controleverklaring (onderdeel “Overige aspecten – beperking in gebruik en verspreidingskring”). \n"]
[null,"Voor het aanmaken van de verantwoordingen per gemeente, vult u in het bovenste blok op regelniveau de gemeente(n) in waar u verantwoording over af wenst te leggen. Vervolgens klikt u op de button ‘Aanmaken verantwoordingen gemeenten’. Het systeem maakt dan automatisch de tabbladen (voorzien van de naam van de gemeente) aan. Indien u meer regels nodig heeft, klikt u op ‘toevoegen’. Het systeem voegt een nieuwe regel toe onder de regel waar u staat met uw cursor. Dit maakt het mogelijk om ook tussen de reeds ingevoerde regels nieuwe regels te plaatsen. Nadat u vervolgens de namen van de gemeente(n) heeft ingevuld klikt u opnieuw op de button ‘Aanmaken verantwoordingen’. Het systeem voegt de nieuwe tabbladen voorzien van de naam van de gemeente toe. Heeft u per ongeluk een verkeerde gemeente opgenomen, dan kunt u deze verwijderen. Ga hiervoor op de betreffende regel staan en klik op de button ‘verwijderen’. Klik vervolgens opnieuw op de button ‘Aanmaken verantwoordingen gemeenten’ om ook het bijbehorende tabblad te verwijderen.\n"]
[null,"Na het aanmaken van de tabbladen is het niet gewenst om de volgorde van de tabbladen te wijzigen. Indien u toch wijzigingen aanbrengt, kunnen er fouten optreden in de automatische tellingen.\n\nOp basis van de ingevulde financiële productieverantwoordingen per gemeente berekent het model in het tabblad ‘Totaalblad’ de totale gerealiseerde productie binnen het domein Wmo. \n\nDoor ondertekening van het formulier ‘Financiële productieverantwoording 2022' verklaart de bestuurder van de zorgaanbieder dat de financiële productieverantwoording 2022 naar waarheid en in overeenstemming met de vigerende wet- en regelgeving is verantwoord. Zie hiervoor paragraaf 3.5 Normen- en toetsingskader, “Algemeen accountantsprotocol financiële productieverantwoording WMO en Jeugdwet 2022”."]
[null,"Tabblad ‘Versiebeheer’"]
[null,"Als het formulier na publicatie nog is aangepast en er dus een nieuwe versie beschikbaar is, dan kunt u in het tabblad Versiebeheer zien welke mutaties er zijn doorgevoerd ten opzichte van het eerder gepubliceerde formulier. "]
[]
[null,"Tabblad ‘Gemeente’ "]
[null,"Overeenkomstig het aantal ingevulde ‘gemeenten’ worden standaard tabbladen aangemaakt. Per gemeente legt u achtereenvolgens verantwoording af over de gerealiseerde productie 2022 binnen het domein WMO \n\nBinnen het formulier is zoveel mogelijk rekening gehouden met de variëteit in de wijze van het maken van inkoopafspraken, gehanteerde productcategoriën (iWMO 3.1) en bekostigingsvormen door de gemeenten voor 2022. De productcategorieën zijn standaard verborgen. U dient zelf de voor u van toepassing zijnde productcategorieën zichtbaar te maken. Maak hiervoor gebruik van de button ‘Productcategorieën zichtbaar maken of verbergen’. U kunt ingeven welke productcategorieën u zichtbaar wenst te maken. Heeft u een categorie zichtbaar gemaakt en wenst u de categorie alsnog te verbergen, dan kunt u dit doen via dezelfde button ‘Productcategorieën zichtbaar maken of verbergen’. Het is niet mogelijk een productiecategorie te verbergen waarin u reeds productie heeft verantwoord. U krijgt dan een melding. \nOok kan het voorkomen dat een deel van de velden binnen een productcategorie voor u niet relevant is of dat u juist extra velden nodig heeft. Extra velden kunnen worden toegevoegd via de button 'toevoegen'.  Een teveel aan rijen kan worden verminderd via een klik op de button 'verwijderen'. Voor de consistentie van het formulier, verzoeken wij u, met uitzondering van de daarvoor bestemde buttons, geen cellen/ rijen/ kolommen te verwijderen. "]
[null,"Indien het overeengekomen contract voorzien is van een inkoopordernummer dan kunt u dit nummer per financieringsstroom invullen.\n\n- In de eerste kolom worden de automatisch aangemaakte regelnummers weergegeven;\n- In de tweede kolom, onder de naam van de Productcategorie (bijvoorbeeld Hulp bij het huishouden) vult u de omschrijving van het product in;\n- In de kolom 'Code' vult u, indien aanwezig, de bijbehorende productcode in;\n- In de kolom Eenheid geeft u aan op basis van welke grootheid de gerealiseerde productieaantallen verantwoord worden. Dit kan zijn minuut, uur, etmaal (24 uur), dagdeel (4 uur), week, euro of stuks, etc.;\n- In de kolom 'Aantal' vult u het gerealiseerde aantal in, de Q; \n- In de kolom 'Prijs' vult u het overeengekomen tarief in, de P; \n- In de kolom 'Realisatie' berekent het formulier de gerealiseerde productie middels P*Q; \n- De laatste regel van een blok geeft de totaal gerealiseerde productie per Productcategorie weer. \n"]
[null,"In het onderdeel 19 vermeldt u producten of arrangementen die niet gefinancierd zijn op basis van een input- of outputfinanciering (P*Q).  Hierbij kunt u denken aan financieringsvormen als taakgerichte productieafspraken, subsidiabele kosten, lumpsumbekostiging of overige specifieke financieringsvormen. Verder biedt dit onderdeel tevens de mogelijkheid om correcties weer te geven. Hierbij kunt u bijvoorbeeld denken aan correcties uit voorgaande jaren n.a.v. een accountantscontrole. De regel correcties is niet bedoeld om gerealiseerde overproductie of doelmatigheidscorrecties weer te geven.\n\nIn onderdeel 20 verantwoordt u de productie die u heeft geleverd op basis van afspraken vanuit de Landelijke inkoopafspraken specialistische begeleiding ZG. Dit geldt voor een select aantal instellingen. De producten die hiervoor van toepassing zijn, zijn opgenomen in de productcodelijst, ‘geel gearceerd’ en tevens herkenbaar aan de productcodes waarin de letter ‘L’ is verwerkt. \n\nIndien u gebruik maakt van de Toelichtingsblokken, verzoeken wij u, indien mogelijk, te verwijzen naar het betreffende regelnummer. "]
[null,"Tabblad ‘Productcodes’"]
[null,"Hanteert de gemeente waar u zorg levert de landelijke standaardproductcodes conform iWmo 3.1, dan kunt u gebruik maken van het tabblad Productcodes. Hierin is de Standaardproductcodelijst opgenomen conform de landelijke I-standaarden (https://www.istandaarden.nl/iwmo/releases/release-iwmo-3.1.1). Door de beveiliging van de werkbladen is het niet mogelijk om de standaardproductcodes te knippen en te plakken. Om de omschrijvingen en codes te verwerken in het verantwoordingsformat typt u in het gewenste veld in het tabblad van de gemeente waarover u verantwoordt \"=\",  vervolgens gaat u naar het tabblad \"Productcodes\", kiest u het gewenste/geleverde product en druk op ‘Enter’. "]
[null,"Tabblad ‘Import Productcodes’ "]
[null,"Voor de gevorderden Excel gebruikers is de mogelijkheid toegevoegd om een eigen tarievenlijst in te voeren om zo door middel van formules de productprijzen \"op te halen\" op de verantwoordingsformulieren per gemeente. Dit doet u als volgt:\nStap 1: maak een lijst van alle producten per gemeente inclusief code en prijs en kopieer deze naar dit tabblad. Let erop dat iedere combinatie van product en gemeente slechts 1x voorkomt op de lijst.\nStap 2: maak de verantwoordingsformulieren aan per gemeente (zie ook de toelichting op Tabblad ‘Overzicht gemeenten’)\nStap 3: op het tabblad Gemeente voert u geen bedrag in voor de \"Prijs in €\", maar maakt u gebruik van de functie SOMMEN.ALS. \nStap 4: in cel J22 staat een voorbeeld formule.\n\nVoorbeeld van uitvoering:\n1. Selecteer cel J22\n2. voer in: =SOMMEN.ALS(\n3. Kies het optelbereik; dat is kolom D op het tabblad Import Productcodes\n4. Kies het eerste criteriumbereik; dat is kolom B op het tabblad Import Productcodes (\"code\")\n5. Geef het eerste criterium op; verwijs naar cel G22 waar u de productcode heeft opgegeven\n6. Kies het tweede criteriumbereik; dat is kolom C op het tabblad Import Productcodes (\"gemeente\")\n7. Geef het tweede criterium op; verwijst naar cel D9 waar de gemeente naam is opgegeven toen u het formulier aanmaakte. Dit is een beveiligde cel, dus de verwijzing moet u handmatig invoeren.\n8. De formule (inclusief de juiste $$ posities) is nu: =SOMMEN.ALS('Import Productcodes'!$D:$D;'Import Productcodes'!$B:$B;G22;'Import Productcodes'!$C:$C;$D$9). Deze formule kunt u kopieren naar andere rijen en tabbladen."]
[null,"Tips:\n1. Indien of de productcode of de gemeentenaam niet exact overeenkomt met de productcode/gemeentenaam op het formulier, \ndan zal de prijs € 0,- zijn.\n2. Indien een combinatie van productcode en gemeentenaam tweemaal voorkomt in de tarievenlijst op tabblad Import Productcodes, dan worden de prijzen bij elkaar opgeteld. U kunt de formule voorwaardelijk maken door ALS en AANTALLEN.ALS toe te voegen en een gecombineerde formule te maken, waarbij er geen prijs wordt weergegeven als de uitkomst van AANTALLEN.ALS niet gelijk is aan 1 (en dus vaker dan 1x of geen enkele keer voorkomt in de lijst). De functie wordt dan: \n=ALS(AANTALLEN.ALS('Import Productcodes'!$D:$D;'Import Productcodes'!$B:$B;G22;'Import Productcodes'!$C:$C;$D$9)<>1;0;\nSOMMEN.ALS('Import Productcodes'!$D:$D;'Import Productcodes'!$B:$B;G22;'Import Productcodes'!$C:$C;$D$9))\n"]
[]
[null,"Disclaimer"]
[null,"Deze uitgave is met grote zorgvuldigheid en met gebruikmaking van de meest actuele gegevens tot stand gekomen. Het is evenwel niet geheel uitgesloten dat de informatie in deze uitgave onjuistheden en/of onvolkomenheden bevat. AAG aanvaardt geen aansprakelijkheid voor directe of indirecte schade ontstaan door eventuele onjuistheden en/of onvolkomenheden. Aan de inhoud van deze uitgave kunnen geen rechten worden ontleend."]

{"sheet":"Inleesinstructie","index":1,"n_rows":16,"n_cols":2,"rows_kept":16,"cut":false,"hidden":false,"merged":[]}
[null,"Invulinstructie Financiële productieverantwoording Wmo"]
[]
[null,"Wmo INLEESINSTRUCTIE "]
[]
[null,"Algemeen"]
[null,"Met ingang van het verantwoordingsformat 2020 is de functionaliteit tot het inlezen van de productieverantwoording toegevoegd. Dit betreft een optionele functionaliteit, u kunt ook op de reguliere manier (zie invulinstructie) het format vullen. U bent volledig vrij in de keuze of u de inleesfunctie gebruikt, maar let op: u kunt niet beide methoden hanteren: kies vooraf of u gebruik maakt van de inleesfunctionaliteit (lees hier verder), of dat u het op de reguliere manier verwerkt (zie invulinstructie). Vooral voor organisaties met veel verschillende producten en/of gemeenten, kan deze optie veel tijd besparen. Het gebruiken van deze functionaliteit vraagt geen extra inspanningen in het voortraject (het traject voorafgaand aan het vullen van dit format). U bereidt de verantwoording voor, zoals u dat ook vanuit voorgaande jaren gewend bent en verwerkt de gegevens in het tabblad \"Inleesblad\". Het format genereert vervolgens de benodigde tabbladen en verwerkt uw invoer. Als het model klaar is, verschijnt er een melding en dient u enkel nog de output te controleren. Controleer vooral of de totaaltellingen aansluiten bij uw input."]
[null,"Werkwijze"]
[null,"* Voer de voorbereidende werkzaamheden voor uw verantwoording uit in uw bronbestand, zoals u vanuit voorgaande jaren gewend bent."]
[null,"* Verwerk vervolgens de gegevens uit het bronbestand in dit format door het tabblad \"Inleesblad\" te vullen. Afhankelijk van uw voorbereiding kunt u dit vrij eenvoudig doen door gebruik te maken van de draaitabelfunctie van Excel op uw bronbestand om vervolgens de gegevens te kopiëren en plakken in dit format. Indien u hier minder bekend mee bent, kunt u de gegevens aggregeren zoals u dat ook voorgaande jaren heeft gedaan. Het is van belang dat de regels volledig zijn gevuld en dat er geen lege cellen in uw input staan. In het format zijn hiervoor verschillende controles ingebouwd."]
[null,"* Controleer of het totaal van de door u in het tabblad \"Inleesblad\" opgenomen gegevens aansluit met uw eigen berekeningen. Indien dit het geval is kunt u het verwerken laten starten door te klikken op de knop \"Verwerk gegevens in verantwoordingsformat -Start-\". Het format verwerkt vervolgens de gegevens voor u."]
[null,"* Zodra het format klaar is, verschijnt hiervan een melding. Controleert u vervolgens nauwkeurig de output. Voor het aansluiten van de totalen kunt u eenvoudig gebruik maken van de totalen opgenomen in het tabblad \"Inleesblad\". Onderstaand ziet u een voorbeeld van een juist verwerkte input."]
[]
[null,"Disclaimer"]
[null,"Deze functionaliteit is met grote zorgvuldigheid opgenomen. Gezien de grote diversiteit in zorgorganisaties en organisatiespecifieke afspraken, kan het onverhoopt voorkomen dat het format de gegevens niet volledig juist kan verwerken. Bent u zich hiervan bewust en controleert u de output zorgvuldig om eventuele onjuistheden te voorkomen."]
[]
[null,"Voorbeeld van een goed ingevuld \"inleesblad\""]

{"sheet":"Inleesblad","index":2,"n_rows":1004,"n_cols":13,"rows_kept":1004,"cut":false,"hidden":false,"merged":[]}
[{"$f":"COUNTIF($C$4:$I$1003,\"<>\"&\"\")","v":0},null,"Uitvraag inleesbestand"]
[{"$f":"AND(COUNTIF($C$4:$C$1003,\"<>\"&\"\")=COUNTIF($D$4:$D$1003,\"<>\"&\"\"),COUNTIF($C$4:$C$1003,\"<>\"&\"\")=COUNTIF($E$4:$E$1003,\"<>\"&\"\"),COUNTIF($C$4:$C$1003,\"<>\"&\"\")=COUNTIF($F$4:$F$1003,\"<>\"&\"\"),COUNTIF($C$4:$C$1003,\"<>\"&\"\")=COUNTIF($G$4:$G$1003,\"<>\"&\"\"),COUNTIF($C$4:$C$1003,\"<>\"&\"\")=COUNTIF($H$4:$H$1003,\"<>\"&\"\"),COUNTIF($C$4:$C$1003,\"<>\"&\"\")=COUNTIF($I$4:$I$1003,\"<>\"&\"\"))","v":true},null,"Er bevinden zich lege cellen in onderstaande input. Hierdoor kan het model de verantwoording niet volledig vullen. Controleer uw input alvorens u verder gaat."]
[{"$f":"C3&\"_\"&(D3*100+COUNTIFS(D:D,D3,C:C,C3)-COUNTIFS(D3:$D$1003,D3,C3:$C$1003,C3))","v":{"$error":"#VALUE!"}},null,"Gemeente","Productcategorie","Code","Omschrijving","Eenheid","Prijs in € (P)","Aantal (Q)","Realisatie in €"]
[null,null,null,null,null,null,null,null,null,{"$f":"IF(AND(H4<>\"\",I4<>\"\"),H4*I4,\"\")","v":""}]
[null,null,null,null,null,null,null,null,null,{"$f":"IF(AND(H5<>\"\",I5<>\"\"),H5*I5,\"\")","v":""}]
[null,null,null,null,null,null,null,null,null,""]
[null,null,null,null,null,null,null,null,null,""]
[null,null,null,null,null,null,null,null,null,""]
[null,null,null,null,null,null,null,null,null,""]
[null,null,null,null,null,null,null,null,null,""]
[null,null,null,null,null,null,null,null,null,""]
[null,null,null,null,null,null,null,null,null,"",null,"Totaal realisatie (P*Q)","Totaal verwerkt"]
[null,null,null,null,null,null,null,null,null,"",null,{"$f":"ROUND(SUM(J:J),2)","v":0},{"$f":"ROUND(Totaalblad!F18,2)","v":0}]
[null,null,null,null,null,null,null,null,null,""]
[null,null,null,null,null,null,null,null,null,""]
[null,null,null,null,null,null,null,null,null,""]
[null,null,null,null,null,null,null,null,null,""]
[null,null,null,null,null,null,null,null,null,""]
[null,null,null,null,null,null,null,null,null,""]
[null,null,null,null,null,null,null,null,null,""]
[null,null,null,null,null,null,null,null,null,""]
[null,null,null,null,null,null,null,null,null,""]
[null,null,null,null,null,null,null,null,null,""]
[null,null,null,null,null,null,null,null,null,""]
[null,null,null,null,null,null,null,null,null,""]
[null,null,null,null,null,null,null,null,null,""]
[null,null,null,null,null,null,null,null,null,""]
[null,null,null,null,null,null,null,null,null,""]
[null,null,null,null,null,null,null,null,null,""]
[null,null,null,null,null,null,null,null,null,""]
[null,null,null,null,null,null,null,null,null,""]
[null,null,null,null,null,null,null,null,null,""]
[null,null,null,null,null,null,null,null,null,""]
[null,null,null,null,null,null,null,null,null,""]
[null,null,null,null,null,null,null,null,null,""]
[null,null,null,null,null,null,null,null,null,""]
[null,null,null,null,null,null,null,null,null,""]
[null,null,null,null,null,null,null,null,null,""]
[null,null,null,null,null,null,null,null,null,""]
[null,null,null,null,null,null,null,null,null,""]
[null,null,null,null,null,null,null,null,null,""]
[null,null,null,null,null,null,null,null,null,""]
[null,null,null,null,null,null,null,null,null,""]
[null,null,null,null,null,null,null,null,null,""]
[null,null,null,null,null,null,null,null,null,""]
[null,null,null,null,null,null,null,null,null,""]
[null,null,null,null,null,null,null,null,null,""]
[null,null,null,null,null,null,null,null,null,""]
[null,null,null,null,null,null,null,null,null,""]
[null,null,null,null,null,null,null,null,null,""]
[null,null,null,null,null,null,null,null,null,""]
[null,null,null,null,null,null,null,null,null,""]
[null,null,null,null,null,null,null,null,null,""]
[null,null,null,null,null,null,null,null,null,""]
[null,null,null,null,null,null,null,null,null,""]
[null,null,null,null,null,null,null,null,null,""]
[null,null,null,null,null,null,null,null,null,""]
[null,null,null,null,null,null,null,null,null,""]
[null,null,null,null,null,null,null,null,null,""]
[null,null,null,null,null,null,null,null,null,""]
[null,null,null,null,null,null,null,null,null,""]
[null,null,null,null,null,null,null,null,null,""]
[null,null,null,null,null,null,null,null,null,""]
[null,null,null,null,null,null,null,null,null,""]
[null,null,null,null,null,null,null,null,null,""]
[null,null,null,null,null,null,null,null,null,""]
[null,null,null,null,null,null,null,null,null,""]
[null,null,null,null,null,null,null,null,null,""]
[null,null,null,null,null,null,null,null,null,{"$f":"IF(AND(H69<>\"\",I69<>\"\"),H69*I69,\"\")","v":""}]
[null,null,null,null,null,null,null,null,null,""]
[null,null,null,null,null,null,null,null,null,""]
[null,null,null,null,null,null,null,null,null,""]
[null,null,null,null,null,null,null,null,null,""]
[null,null,null,null,null,null,null,null,null,""]
[null,null,null,null,null,null,null,null,null,""]
[null,null,null,null,null,null,null,null,null,""]
[null,null,null,null,null,null,null,null,null,""]
[null,null,null,null,null,null,null,null,null,""]
[null,null,null,null,null,null,null,null,null,""]
[null,null,null,null,null,null,null,null,null,""]
[null,null,null,null,null,null,null,null,null,""]
[null,null,null,null,null,null,null,null,null,""]
[null,null,null,null,null,null,null,null,null,""]
[null,null,null,null,null,null,null,null,null,""]
[null,null,null,null,null,null,null,null,null,""]
[null,null,null,null,null,null,null,null,null,""]
[null,null,null,null,null,null,null,null,null,""]
[null,null,null,null,null,null,null,null,null,""]
[null,null,null,null,null,null,null,null,null,""]
[null,null,null,null,null,null,null,null,null,""]
[null,null,null,null,null,null,null,null,null,""]
[null,null,null,null,null,null,null,null,null,""]
[null,null,null,null,null,null,null,null,null,""]
[null,null,null,null,null,null,null,null,null,""]
[null,null,null,null,null,null,null,null,null,""]
[null,null,null,null,null,null,null,null,null,""]
[null,null,null,null,null,null,null,null,null,""]
[null,null,null,null,null,null,null,null,null,""]
[null,null,null,null,null,null,null,null,null,""]
[null,null,null,null,null,null,null,null,null,""]
[null,null,null,null,null,null,null,null,null,""]
[null,null,null,null,null,null,null,null,null,""]
[null,null,null,null,null,null,null,null,null,""]
[null,null,null,null,null,null,null,null,null,""]
[null,null,null,null,null,null,null,null,null,""]
[null,null,null,null,null,null,null,null,null,""]
[null,null,null,null,null,null,null,null,null,""]
[null,null,null,null,null,null,null,null,null,""]
[null,null,null,null,null,null,null,null,null,""]
[null,null,null,null,null,null,null,null,null,""]
[null,null,null,null,null,null,null,null,null,""]
[null,null,null,null,null,null,null,null,null,""]
[null,null,null,null,null,null,null,null,null,""]
[null,null,null,null,null,null,null,null,null,""]
[null,null,null,null,null,null,null,null,null,""]
[null,null,null,null,null,null,null,null,null,""]
[null,null,null,null,null,null,null,null,null,""]
[null,null,null,null,null,null,null,null,null,""]
[null,null,null,null,null,null,null,null,null,""]
[null,null,null,null,null,null,null,null,null,""]
[null,null,null,null,null,null,null,null,null,""]
[null,null,null,null,null,null,null,null,null,""]
[null,null,null,null,null,null,null,null,null,""]
[null,null,null,null,null,null,null,null,null,""]
[null,null,null,null,null,null,null,null,null,""]
[null,null,null,null,null,null,null,null,null,""]
[null,null,null,null,null,null,null,null,null,""]
[null,null,null,null,null,null,null,null,null,""]
[null,null,null,null,null,null,null,null,null,""]
[null,null,null,null,null,null,null,null,null,""]
[null,null,null,null,null,null,null,null,null,""]
[null,null,null,null,null,null,null,null,null,""]
[null,null,null,null,null,null,null,null,null,{"$f":"IF(AND(H133<>\"\",I133<>\"\"),H133*I133,\"\")","v":""}]
[null,null,null,null,null,null,null,null,null,""]
[null,null,null,null,null,null,null,null,null,""]
[null,null,null,null,null,null,null,null,null,""]
[null,null,null,null,null,null,null,null,null,""]
[null,null,null,null,null,null,null,null,null,""]
[null,null,null,null,null,null,null,null,null,""]
[null,null,null,null,null,null,null,null,null,""]
[null,null,null,null,null,null,null,null,null,""]
[null,null,null,null,null,null,null,null,null,""]
[null,null,null,null,null,null,null,null,null,""]
[null,null,null,null,null,null,null,null,null,""]
[null,null,null,null,null,null,null,null,null,""]
[null,null,null,null,null,null,null,null,null,""]
[null,null,null,null,null,null,null,null,null,""]
[null,null,null,null,null,null,null,null,null,""]
[null,null,null,null,null,null,null,null,null,""]
[null,null,null,null,null,null,null,null,null,""]
[null,null,null,null,null,null,null,null,null,""]
[null,null,null,null,null,null,null,null,null,""]
[null,null,null,null,null,null,null,null,null,""]
[null,null,null,null,null,null,null,null,null,""]
[null,null,null,null,null,null,null,null,null,""]
[null,null,null,null,null,null,null,null,null,""]
[null,null,null,null,null,null,null,null,null,""]
[null,null,null,null,null,null,null,null,null,""]
[null,null,null,null,null,null,null,null,null,""]
[null,null,null,null,null,null,null,null,null,""]
[null,null,null,null,null,null,null,null,null,""]
[null,null,null,null,null,null,null,null,null,""]
[null,null,null,null,null,null,null,null,null,""]
[null,null,null,null,null,null,null,null,null,""]
[null,null,null,null,null,null,null,null,null,""]
[null,null,null,null,null,null,null,null,null,""]
[null,null,null,null,null,null,null,null,null,""]
[null,null,null,null,null,null,null,null,null,""]
[null,null,null,null,null,null,null,null,null,""]
[null,null,null,null,null,null,null,null,null,""]
[null,null,null,null,null,null,null,null,null,""]
[null,null,null,null,null,null,null,null,null,""]
[null,null,null,null,null,null,null,null,null,""]
[null,null,null,null,null,null,null,null,null,""]
[null,null,null,null,null,null,null,null,null,""]
[null,null,null,null,null,null,null,null,null,""]
[null,null,null,null,null,null,null,null,null,""]
[null,null,null,null,null,null,null,null,null,""]
[null,null,null,null,null,null,null,null,null,""]
[null,null,null,null,null,null,null,null,null,""]
[null,null,null,null,null,null,null,null,null,""]
[null,null,null,null,null,null,null,null,null,""]
[null,null,null,null,null,null,null,null,null,""]
[null,null,null,null,null,null,null,null,null,""]
[null,null,null,null,null,null,null,null,null,""]
[null,null,null,null,null,null,null,null,null,""]
[null,null,null,null,null,null,null,null,null,""]
[null,null,null,null,null,null,null,null,null,""]
[null,null,null,null,null,null,null,null,null,""]
[null,null,null,null,null,null,null,null,null,""]
[null,null,null,null,null,null,null,null,null,""]
[null,null,null,null,null,null,null,null,null,""]
[null,null,null,null,null,null,null,null,null,""]
[null,null,null,null,null,null,null,null,null,""]
[null,null,null,null,null,null,null,null,null,""]
[null,null,null,null,null,null,null,null,null,""]
[null,null,null,null,null,null,null,null,null,{"$f":"IF(AND(H197<>\"\",I197<>\"\"),H197*I197,\"\")","v":""}]
[null,null,null,null,null,null,null,null,null,""]
[null,null,null,null,null,null,null,null,null,""]
[null,null,null,null,null,null,null,null,null,""]
[null,null,null,null,null,null,null,null,null,""]
[null,null,null,null,null,null,null,null,null,""]
[null,null,null,null,null,null,null,null,null,""]
[null,null,null,null,null,null,null,null,null,""]
[null,null,null,null,null,null,null,null,null,""]
[null,null,null,null,null,null,null,null,null,""]
[null,null,null,null,null,null,null,null,null,""]
[null,null,null,null,null,null,null,null,null,""]
[null,null,null,null,null,null,null,null,null,""]
[null,null,null,null,null,null,null,null,null,""]
[null,null,null,null,null,null,null,null,null,""]
[null,null,null,null,null,null,null,null,null,""]
[null,null,null,null,null,null,null,null,null,""]
[null,null,null,null,null,null,null,null,null,""]
[null,null,null,null,null,null,null,null,null,""]
[null,null,null,null,null,null,null,null,null,""]
[null,null,null,null,null,null,null,null,null,""]
[null,null,null,null,null,null,null,null,null,""]
[null,null,null,null,null,null,null,null,null,""]
[null,null,null,null,null,null,null,null,null,""]
[null,null,null,null,null,null,null,null,null,""]
[null,null,null,null,null,null,null,null,null,""]
[null,null,null,null,null,null,null,null,null,""]
[null,null,null,null,null,null,null,null,null,""]
[null,null,null,null,null,null,null,null,null,""]
[null,null,null,null,null,null,null,null,null,""]
[null,null,null,null,null,null,null,null,null,""]
[null,null,null,null,null,null,null,null,null,""]
[null,null,null,null,null,null,null,null,null,""]
[null,null,null,null,null,null,null,null,null,""]
[null,null,null,null,null,null,null,null,null,""]
[null,null,null,null,null,null,null,null,null,""]
[null,null,null,null,null,null,null,null,null,""]
[null,null,null,null,null,null,null,null,null,""]
[null,null,null,null,null,null,null,null,null,""]
[null,null,null,null,null,null,null,null,null,""]
[null,null,null,null,null,null,null,null,null,""]
[null,null,null,null,null,null,null,null,null,""]
[null,null,null,null,null,null,null,null,null,""]
[null,null,null,null,null,null,null,null,null,""]
[null,null,null,null,null,null,null,null,null,""]
[null,null,null,null,null,null,null,null,null,""]
[null,null,null,null,null,null,null,null,null,""]
[null,null,null,null,null,null,null,null,null,""]
[null,null,null,null,null,null,null,null,null,""]
[null,null,null,null,null,null,null,null,null,""]
[null,null,null,null,null,null,null,null,null,""]
[null,null,null,null,null,null,null,null,null,""]
[null,null,null,null,null,null,null,null,null,""]
[null,null,null,null,null,null,null,null,null,""]
[null,null,null,null,null,null,null,null,null,""]
[null,null,null,null,null,null,null,null,null,""]
[null,null,null,null,null,null,null,null,null,""]
[null,null,null,null,null,null,null,null,null,""]
[null,null,null,null,null,null,null,null,null,""]
[null,null,null,null,null,null,null,null,null,""]
[null,null,null,null,null,null,null,null,null,""]
[null,null,null,null,null,null,null,null,null,""]
[null,null,null,null,null,null,null,null,null,""]
[null,null,null,null,null,null,null,null,null,""]
[null,null,null,null,null,null,null,null,null,{"$f":"IF(AND(H261<>\"\",I261<>\"\"),H261*I261,\"\")","v":""}]
[null,null,null,null,null,null,null,null,null,""]
[null,null,null,null,null,null,null,null,null,""]
[null,null,null,null,null,null,null,null,null,""]
[null,null,null,null,null,null,null,null,null,""]
[null,null,null,null,null,null,null,null,null,""]
[null,null,null,null,null,null,null,null,null,""]
[null,null,null,null,null,null,null,null,null,""]
[null,null,null,null,null,null,null,null,null,""]
[null,null,null,null,null,null,null,null,null,""]
[null,null,null,null,null,null,null,null,null,""]
[null,null,null,null,null,null,null,null,null,""]
[null,null,null,null,null,null,null,null,null,""]
[null,null,null,null,null,null,null,null,null,""]
[null,null,null,null,null,null,null,null,null,""]
[null,null,null,null,null,null,null,null,null,""]
[null,null,null,null,null,null,null,null,null,""]
[null,null,null,null,null,null,null,null,null,""]
[null,null,null,null,null,null,null,null,null,""]
[null,null,null,null,null,null,null,null,null,""]
[null,null,null,null,null,null,null,null,null,""]
[null,null,null,null,null,null,null,null,null,""]
[null,null,null,null,null,null,null,null,null,""]
[null,null,null,null,null,null,null,null,null,""]
[null,null,null,null,null,null,null,null,null,""]
[null,null,null,null,null,null,null,null,null,""]
[null,null,null,null,null,null,null,null,null,""]
[null,null,null,null,null,null,null,null,null,""]
[null,null,null,null,null,null,null,null,null,""]
[null,null,null,null,null,null,null,null,null,""]
[null,null,null,null,null,null,null,null,null,""]
[null,null,null,null,null,null,null,null,null,""]
[null,null,null,null,null,null,null,null,null,""]
[null,null,null,null,null,null,null,null,null,""]
[null,null,null,null,null,null,null,null,null,""]
[null,null,null,null,null,null,null,null,null,""]
[null,null,null,null,null,null,null,null,null,""]
[null,null,null,null,null,null,null,null,null,""]
[null,null,null,null,null,null,null,null,null,""]
[null,null,null,null,null,null,null,null,null,""]
[null,null,null,null,null,null,null,null,null,""]
[null,null,null,null,null,null,null,null,null,""]
[null,null,null,null,null,null,null,null,null,""]
[null,null,null,null,null,null,null,null,null,""]
[null,null,null,null,null,null,null,null,null,""]
[null,null,null,null,null,null,null,null,null,""]
[null,null,null,null,null,null,null,null,null,""]
[null,null,null,null,null,null,null,null,null,""]
[null,null,null,null,null,null,null,null,null,""]
[null,null,null,null,null,null,null,null,null,""]
[null,null,null,null,null,null,null,null,null,""]
[null,null,null,null,null,null,null,null,null,""]
[null,null,null,null,null,null,null,null,null,""]
[null,null,null,null,null,null,null,null,null,""]
[null,null,null,null,null,null,null,null,null,""]
[null,null,null,null,null,null,null,null,null,""]
[null,null,null,null,null,null,null,null,null,""]
[null,null,null,null,null,null,null,null,null,""]
[null,null,null,null,null,null,null,null,null,""]
[null,null,null,null,null,null,null,null,null,""]
[null,null,null,null,null,null,null,null,null,""]
[null,null,null,null,null,null,null,null,null,""]
[null,null,null,null,null,null,null,null,null,""]
[null,null,null,null,null,null,null,null,null,""]
[null,null,null,null,null,null,null,null,null,{"$f":"IF(AND(H325<>\"\",I325<>\"\"),H325*I325,\"\")","v":""}]
[null,null,null,null,null,null,null,null,null,""]
[null,null,null,null,null,null,null,null,null,""]
[null,null,null,null,null,null,null,null,null,""]
[null,null,null,null,null,null,null,null,null,""]
[null,null,null,null,null,null,null,null,null,""]
[null,null,null,null,null,null,null,null,null,""]
[null,null,null,null,null,null,null,null,null,""]
[null,null,null,null,null,null,null,null,null,""]
[null,null,null,null,null,null,null,null,null,""]
[null,null,null,null,null,null,null,null,null,""]
[null,null,null,null,null,null,null,null,null,""]
[null,null,null,null,null,null,null,null,null,""]
[null,null,null,null,null,null,null,null,null,""]
[null,null,null,null,null,null,null,null,null,""]
[null,null,null,null,null,null,null,null,null,""]
[null,null,null,null,null,null,null,null,null,""]
[null,null,null,null,null,null,null,null,null,""]
[null,null,null,null,null,null,null,null,null,""]
[null,null,null,null,null,null,null,null,null,""]
[null,null,null,null,null,null,null,null,null,""]
[null,null,null,null,null,null,null,null,null,""]
[null,null,null,null,null,null,null,null,null,""]
[null,null,null,null,null,null,null,null,null,""]
[null,null,null,null,null,null,null,null,null,""]
[null,null,null,null,null,null,null,null,null,""]
[null,null,null,null,null,null,null,null,null,""]
[null,null,null,null,null,null,null,null,null,""]
[null,null,null,null,null,null,null,null,null,""]
[null,null,null,null,null,null,null,null,null,""]
[null,null,null,null,null,null,null,null,null,""]
[null,null,null,null,null,null,null,null,null,""]
[null,null,null,null,null,null,null,null,null,""]
[null,null,null,null,null,null,null,null,null,""]
[null,null,null,null,null,null,null,null,null,""]
[null,null,null,null,null,null,null,null,null,""]
[null,null,null,null,null,null,null,null,null,""]
[null,null,null,null,null,null,null,null,null,""]
[null,null,null,null,null,null,null,null,null,""]
[null,null,null,null,null,null,null,null,null,""]
[null,null,null,null,null,null,null,null,null,""]
[null,null,null,null,null,null,null,null,null,""]
[null,null,null,null,null,null,null,null,null,""]
[null,null,null,null,null,null,null,null,null,""]
[null,null,null,null,null,null,null,null,null,""]
[null,null,null,null,null,null,null,null,null,""]
[null,null,null,null,null,null,null,null,null,""]
[null,null,null,null,null,null,null,null,null,""]
[null,null,null,null,null,null,null,null,null,""]
[null,null,null,null,null,null,null,null,null,""]
[null,null,null,null,null,null,null,null,null,""]
[null,null,null,null,null,null,null,null,null,""]
[null,null,null,null,null,null,null,null,null,""]
[null,null,null,null,null,null,null,null,null,""]
[null,null,null,null,null,null,null,null,null,""]
[null,null,null,null,null,null,null,null,null,""]
[null,null,null,null,null,null,null,null,null,""]
[null,null,null,null,null,null,null,null,null,""]
[null,null,null,null,null,null,null,null,null,""]
[null,null,null,null,null,null,null,null,null,""]
[null,null,null,null,null,null,null,null,null,""]
[null,null,null,null,null,null,null,null,null,""]
[null,null,null,null,null,null,null,null,null,""]
[null,null,null,null,null,null,null,null,null,""]
[null,null,null,null,null,null,null,null,null,{"$f":"IF(AND(H389<>\"\",I389<>\"\"),H389*I389,\"\")","v":""}]
[null,null,null,null,null,null,null,null,null,""]
[null,null,null,null,null,null,null,null,null,""]
[null,null,null,null,null,null,null,null,null,""]
[null,null,null,null,null,null,null,null,null,""]
[null,null,null,null,null,null,null,null,null,""]
[null,null,null,null,null,null,null,null,null,""]
[null,null,null,null,null,null,null,null,null,""]
[null,null,null,null,null,null,null,null,null,""]
[null,null,null,null,null,null,null,null,null,""]
[null,null,null,null,null,null,null,null,null,""]
[null,null,null,null,null,null,null,null,null,""]
[null,null,null,null,null,null,null,null,null,""]
[null,null,null,null,null,null,null,null,null,""]
[null,null,null,null,null,null,null,null,null,""]
[null,null,null,null,null,null,null,null,null,""]
[null,null,null,null,null,null,null,null,null,""]
[null,null,null,null,null,null,null,null,null,""]
[null,null,null,null,null,null,null,null,null,""]
[null,null,null,null,null,null,null,null,null,""]
[null,null,null,null,null,null,null,null,null,""]
[null,null,null,null,null,null,null,null,null,""]
[null,null,null,null,null,null,null,null,null,""]
[null,null,null,null,null,null,null,null,null,""]
[null,null,null,null,null,null,null,null,null,""]
[null,null,null,null,null,null,null,null,null,""]
[null,null,null,null,null,null,null,null,null,""]
[null,null,null,null,null,null,null,null,null,""]
[null,null,null,null,null,null,null,null,null,""]
[null,null,null,null,null,null,null,null,null,""]
[null,null,null,null,null,null,null,null,null,""]
[null,null,null,null,null,null,null,null,null,""]
[null,null,null,null,null,null,null,null,null,""]
[null,null,null,null,null,null,null,null,null,""]
[null,null,null,null,null,null,null,null,null,""]
[null,null,null,null,null,null,null,null,null,""]
[null,null,null,null,null,null,null,null,null,""]
[null,null,null,null,null,null,null,null,null,""]
[null,null,null,null,null,null,null,null,null,""]
[null,null,null,null,null,null,null,null,null,""]
[null,null,null,null,null,null,null,null,null,""]
[null,null,null,null,null,null,null,null,null,""]
[null,null,null,null,null,null,null,null,null,""]
[null,null,null,null,null,null,null,null,null,""]
[null,null,null,null,null,null,null,null,null,""]
[null,null,null,null,null,null,null,null,null,""]
[null,null,null,null,null,null,null,null,null,""]
[null,null,null,null,null,null,null,null,null,""]
[null,null,null,null,null,null,null,null,null,""]
[null,null,null,null,null,null,null,null,null,""]
[null,null,null,null,null,null,null,null,null,""]
[null,null,null,null,null,null,null,null,null,""]
[null,null,null,null,null,null,null,null,null,""]
[null,null,null,null,null,null,null,null,null,""]
[null,null,null,null,null,null,null,null,null,""]
[null,null,null,null,null,null,null,null,null,""]
[null,null,null,null,null,null,null,null,null,""]
[null,null,null,null,null,null,null,null,null,""]
[null,null,null,null,null,null,null,null,null,""]
[null,null,null,null,null,null,null,null,null,""]
[null,null,null,null,null,null,null,null,null,""]
[null,null,null,null,null,null,null,null,null,""]
[null,null,null,null,null,null,null,null,null,""]
[null,null,null,null,null,null,null,null,null,""]
[null,null,null,null,null,null,null,null,null,{"$f":"IF(AND(H453<>\"\",I453<>\"\"),H453*I453,\"\")","v":""}]
[null,null,null,null,null,null,null,null,null,""]
[null,null,null,null,null,null,null,null,null,""]
[null,null,null,null,null,null,null,null,null,""]
[null,null,null,null,null,null,null,null,null,""]
[null,null,null,null,null,null,null,null,null,""]
[null,null,null,null,null,null,null,null,null,""]
[null,null,null,null,null,null,null,null,null,""]
[null,null,null,null,null,null,null,null,null,""]
[null,null,null,null,null,null,null,null,null,""]
[null,null,null,null,null,null,null,null,null,""]
[null,null,null,null,null,null,null,null,null,""]
[null,null,null,null,null,null,null,null,null,""]
[null,null,null,null,null,null,null,null,null,""]
[null,null,null,null,null,null,null,null,null,""]
[null,null,null,null,null,null,null,null,null,""]
[null,null,null,null,null,null,null,null,null,""]
[null,null,null,null,null,null,null,null,null,""]
[null,null,null,null,null,null,null,null,null,""]
[null,null,null,null,null,null,null,null,null,""]
[null,null,null,null,null,null,null,null,null,""]
[null,null,null,null,null,null,null,null,null,""]
[null,null,null,null,null,null,null,null,null,""]
[null,null,null,null,null,null,null,null,null,""]
[null,null,null,null,null,null,null,null,null,""]
[null,null,null,null,null,null,null,null,null,""]
[null,null,null,null,null,null,null,null,null,""]
[null,null,null,null,null,null,null,null,null,""]
[null,null,null,null,null,null,null,null,null,""]
[null,null,null,null,null,null,null,null,null,""]
[null,null,null,null,null,null,null,null,null,""]
[null,null,null,null,null,null,null,null,null,""]
[null,null,null,null,null,null,null,null,null,""]
[null,null,null,null,null,null,null,null,null,""]
[null,null,null,null,null,null,null,null,null,""]
[null,null,null,null,null,null,null,null,null,""]
[null,null,null,null,null,null,null,null,null,""]
[null,null,null,null,null,null,null,null,null,""]
[null,null,null,null,null,null,null,null,null,""]
[null,null,null,null,null,null,null,null,null,""]
[null,null,null,null,null,null,null,null,null,""]
[null,null,null,null,null,null,null,null,null,""]
[null,null,null,null,null,null,null,null,null,""]
[null,null,null,null,null,null,null,null,null,""]
[null,null,null,null,null,null,null,null,null,""]
[null,null,null,null,null,null,null,null,null,""]
[null,null,null,null,null,null,null,null,null,""]
[null,null,null,null,null,null,null,null,null,""]
[null,null,null,null,null,null,null,null,null,""]
[null,null,null,null,null,null,null,null,null,""]
[null,null,null,null,null,null,null,null,null,""]
[null,null,null,null,null,null,null,null,null,""]
[null,null,null,null,null,null,null,null,null,""]
[null,null,null,null,null,null,null,null,null,""]
[null,null,null,null,null,null,null,null,null,""]
[null,null,null,null,null,null,null,null,null,""]
[null,null,null,null,null,null,null,null,null,""]
[null,null,null,null,null,null,null,null,null,""]
[null,null,null,null,null,null,null,null,null,""]
[null,null,null,null,null,null,null,null,null,""]
[null,null,null,null,null,null,null,null,null,""]
[null,null,null,null,null,null,null,null,null,""]
[null,null,null,null,null,null,null,null,null,""]
[null,null,null,null,null,null,null,null,null,""]
[null,null,null,null,null,null,null,null,null,{"$f":"IF(AND(H517<>\"\",I517<>\"\"),H517*I517,\"\")","v":""}]
[null,null,null,null,null,null,null,null,null,""]
[null,null,null,null,null,null,null,null,null,""]
[null,null,null,null,null,null,null,null,null,""]
[null,null,null,null,null,null,null,null,null,""]
[null,null,null,null,null,null,null,null,null,""]
[null,null,null,null,null,null,null,null,null,""]
[null,null,null,null,null,null,null,null,null,""]
[null,null,null,null,null,null,null,null,null,""]
[null,null,null,null,null,null,null,null,null,""]
[null,null,null,null,null,null,null,null,null,""]
[null,null,null,null,null,null,null,null,null,""]
[null,null,null,null,null,null,null,null,null,""]
[null,null,null,null,null,null,null,null,null,""]
[null,null,null,null,null,null,null,null,null,""]
[null,null,null,null,null,null,null,null,null,""]
[null,null,null,null,null,null,null,null,null,""]
[null,null,null,null,null,null,null,null,null,""]
[null,null,null,null,null,null,null,null,null,""]
[null,null,null,null,null,null,null,null,null,""]
[null,null,null,null,null,null,null,null,null,""]
[null,null,null,null,null,null,null,null,null,""]
[null,null,null,null,null,null,null,null,null,""]
[null,null,null,null,null,null,null,null,null,""]
[null,null,null,null,null,null,null,null,null,""]
[null,null,null,null,null,null,null,null,null,""]
[null,null,null,null,null,null,null,null,null,""]
[null,null,null,null,null,null,null,null,null,""]
[null,null,null,null,null,null,null,null,null,""]
[null,null,null,null,null,null,null,null,null,""]
[null,null,null,null,null,null,null,null,null,""]
[null,null,null,null,null,null,null,null,null,""]
[null,null,null,null,null,null,null,null,null,""]
[null,null,null,null,null,null,null,null,null,""]
[null,null,null,null,null,null,null,null,null,""]
[null,null,null,null,null,null,null,null,null,""]
[null,null,null,null,null,null,null,null,null,""]
[null,null,null,null,null,null,null,null,null,""]
[null,null,null,null,null,null,null,null,null,""]
[null,null,null,null,null,null,null,null,null,""]
[null,null,null,null,null,null,null,null,null,""]
[null,null,null,null,null,null,null,null,null,""]
[null,null,null,null,null,null,null,null,null,""]
[null,null,null,null,null,null,null,null,null,""]
[null,null,null,null,null,null,null,null,null,""]
[null,null,null,null,null,null,null,null,null,""]
[null,null,null,null,null,null,null,null,null,""]
[null,null,null,null,null,null,null,null,null,""]
[null,null,null,null,null,null,null,null,null,""]
[null,null,null,null,null,null,null,null,null,""]
[null,null,null,null,null,null,null,null,null,""]
[null,null,null,null,null,null,null,null,null,""]
[null,null,null,null,null,null,null,null,null,""]
[null,null,null,null,null,null,null,null,null,""]
[null,null,null,null,null,null,null,null,null,""]
[null,null,null,null,null,null,null,null,null,""]
[null,null,null,null,null,null,null,null,null,""]
[null,null,null,null,null,null,null,null,null,""]
[null,null,null,null,null,null,null,null,null,""]
[null,null,null,null,null,null,null,null,null,""]
[null,null,null,null,null,null,null,null,null,""]
[null,null,null,null,null,null,null,null,null,""]
[null,null,null,null,null,null,null,null,null,""]
[null,null,null,null,null,null,null,null,null,""]
[null,null,null,null,null,null,null,null,null,{"$f":"IF(AND(H581<>\"\",I581<>\"\"),H581*I581,\"\")","v":""}]
[null,null,null,null,null,null,null,null,null,""]
[null,null,null,null,null,null,null,null,null,""]
[null,null,null,null,null,null,null,null,null,""]
[null,null,null,null,null,null,null,null,null,""]
[null,null,null,null,null,null,null,null,null,""]
[null,null,null,null,null,null,null,null,null,""]
[null,null,null,null,null,null,null,null,null,""]
[null,null,null,null,null,null,null,null,null,""]
[null,null,null,null,null,null,null,null,null,""]
[null,null,null,null,null,null,null,null,null,""]
[null,null,null,null,null,null,null,null,null,""]
[null,null,null,null,null,null,null,null,null,""]
[null,null,null,null,null,null,null,null,null,""]
[null,null,null,null,null,null,null,null,null,""]
[null,null,null,null,null,null,null,null,null,""]
[null,null,null,null,null,null,null,null,null,""]
[null,null,null,null,null,null,null,null,null,""]
[null,null,null,null,null,null,null,null,null,""]
[null,null,null,null,null,null,null,null,null,""]
[null,null,null,null,null,null,null,null,null,""]
[null,null,null,null,null,null,null,null,null,""]
[null,null,null,null,null,null,null,null,null,""]
[null,null,null,null,null,null,null,null,null,""]
[null,null,null,null,null,null,null,null,null,""]
[null,null,null,null,null,null,null,null,null,""]
[null,null,null,null,null,null,null,null,null,""]
[null,null,null,null,null,null,null,null,null,""]
[null,null,null,null,null,null,null,null,null,""]
[null,null,null,null,null,null,null,null,null,""]
[null,null,null,null,null,null,null,null,null,""]
[null,null,null,null,null,null,null,null,null,""]
[null,null,null,null,null,null,null,null,null,""]
[null,null,null,null,null,null,null,null,null,""]
[null,null,null,null,null,null,null,null,null,""]
[null,null,null,null,null,null,null,null,null,""]
[null,null,null,null,null,null,null,null,null,""]
[null,null,null,null,null,null,null,null,null,""]
[null,null,null,null,null,null,null,null,null,""]
[null,null,null,null,null,null,null,null,null,""]
[null,null,null,null,null,null,null,null,null,""]
[null,null,null,null,null,null,null,null,null,""]
[null,null,null,null,null,null,null,null,null,""]
[null,null,null,null,null,null,null,null,null,""]
[null,null,null,null,null,null,null,null,null,""]
[null,null,null,null,null,null,null,null,null,""]
[null,null,null,null,null,null,null,null,null,""]
[null,null,null,null,null,null,null,null,null,""]
[null,null,null,null,null,null,null,null,null,""]
[null,null,null,null,null,null,null,null,null,""]
[null,null,null,null,null,null,null,null,null,""]
[null,null,null,null,null,null,null,null,null,""]
[null,null,null,null,null,null,null,null,null,""]
[null,null,null,null,null,null,null,null,null,""]
[null,null,null,null,null,null,null,null,null,""]
[null,null,null,null,null,null,null,null,null,""]
[null,null,null,null,null,null,null,null,null,""]
[null,null,null,null,null,null,null,null,null,""]
[null,null,null,null,null,null,null,null,null,""]
[null,null,null,null,null,null,null,null,null,""]
[null,null,null,null,null,null,null,null,null,""]
[null,null,null,null,null,null,null,null,null,""]
[null,null,null,null,null,null,null,null,null,""]
[null,null,null,null,null,null,null,null,null,""]
[null,null,null,null,null,null,null,null,null,{"$f":"IF(AND(H645<>\"\",I645<>\"\"),H645*I645,\"\")","v":""}]
[null,null,null,null,null,null,null,null,null,""]
[null,null,null,null,null,null,null,null,null,""]
[null,null,null,null,null,null,null,null,null,""]
[null,null,null,null,null,null,null,null,null,""]
[null,null,null,null,null,null,null,null,null,""]
[null,null,null,null,null,null,null,null,null,""]
[null,null,null,null,null,null,null,null,null,""]
[null,null,null,null,null,null,null,null,null,""]
[null,null,null,null,null,null,null,null,null,""]
[null,null,null,null,null,null,null,null,null,""]
[null,null,null,null,null,null,null,null,null,""]
[null,null,null,null,null,null,null,null,null,""]
[null,null,null,null,null,null,null,null,null,""]
[null,null,null,null,null,null,null,null,null,""]
[null,null,null,null,null,null,null,null,null,""]
[null,null,null,null,null,null,null,null,null,""]
[null,null,null,null,null,null,null,null,null,""]
[null,null,null,null,null,null,null,null,null,""]
[null,null,null,null,null,null,null,null,null,""]
[null,null,null,null,null,null,null,null,null,""]
[null,null,null,null,null,null,null,null,null,""]
[null,null,null,null,null,null,null,null,null,""]
[null,null,null,null,null,null,null,null,null,""]
[null,null,null,null,null,null,null,null,null,""]
[null,null,null,null,null,null,null,null,null,""]
[null,null,null,null,null,null,null,null,null,""]
[null,null,null,null,null,null,null,null,null,""]
[null,null,null,null,null,null,null,null,null,""]
[null,null,null,null,null,null,null,null,null,""]
[null,null,null,null,null,null,null,null,null,""]
[null,null,null,null,null,null,null,null,null,""]
[null,null,null,null,null,null,null,null,null,""]
[null,null,null,null,null,null,null,null,null,""]
[null,null,null,null,null,null,null,null,null,""]
[null,null,null,null,null,null,null,null,null,""]
[null,null,null,null,null,null,null,null,null,""]
[null,null,null,null,null,null,null,null,null,""]
[null,null,null,null,null,null,null,null,null,""]
[null,null,null,null,null,null,null,null,null,""]
[null,null,null,null,null,null,null,null,null,""]
[null,null,null,null,null,null,null,null,null,""]
[null,null,null,null,null,null,null,null,null,""]
[null,null,null,null,null,null,null,null,null,""]
[null,null,null,null,null,null,null,null,null,""]
[null,null,null,null,null,null,null,null,null,""]
[null,null,null,null,null,null,null,null,null,""]
[null,null,null,null,null,null,null,null,null,""]
[null,null,null,null,null,null,null,null,null,""]
[null,null,null,null,null,null,null,null,null,""]
[null,null,null,null,null,null,null,null,null,""]
[null,null,null,null,null,null,null,null,null,""]
[null,null,null,null,null,null,null,null,null,""]
[null,null,null,null,null,null,null,null,null,""]
[null,null,null,null,null,null,null,null,null,""]
[null,null,null,null,null,null,null,null,null,""]
[null,null,null,null,null,null,null,null,null,""]
[null,null,null,null,null,null,null,null,null,""]
[null,null,null,null,null,null,null,null,null,""]
[null,null,null,null,null,null,null,null,null,""]
[null,null,null,null,null,null,null,null,null,""]
[null,null,null,null,null,null,null,null,null,""]
[null,null,null,null,null,null,null,null,null,""]
[null,null,null,null,null,null,null,null,null,""]
[null,null,null,null,null,null,null,null,null,{"$f":"IF(AND(H709<>\"\",I709<>\"\"),H709*I709,\"\")","v":""}]
[null,null,null,null,null,null,null,null,null,""]
[null,null,null,null,null,null,null,null,null,""]
[null,null,null,null,null,null,null,null,null,""]
[null,null,null,null,null,null,null,null,null,""]
[null,null,null,null,null,null,null,null,null,""]
[null,null,null,null,null,null,null,null,null,""]
[null,null,null,null,null,null,null,null,null,""]
[null,null,null,null,null,null,null,null,null,""]
[null,null,null,null,null,null,null,null,null,""]
[null,null,null,null,null,null,null,null,null,""]
[null,null,null,null,null,null,null,null,null,""]
[null,null,null,null,null,null,null,null,null,""]
[null,null,null,null,null,null,null,null,null,""]
[null,null,null,null,null,null,null,null,null,""]
[null,null,null,null,null,null,null,null,null,""]
[null,null,null,null,null,null,null,null,null,""]
[null,null,null,null,null,null,null,null,null,""]
[null,null,null,null,null,null,null,null,null,""]
[null,null,null,null,null,null,null,null,null,""]
[null,null,null,null,null,null,null,null,null,""]
[null,null,null,null,null,null,null,null,null,""]
[null,null,null,null,null,null,null,null,null,""]
[null,null,null,null,null,null,null,null,null,""]
[null,null,null,null,null,null,null,null,null,""]
[null,null,null,null,null,null,null,null,null,""]
[null,null,null,null,null,null,null,null,null,""]
[null,null,null,null,null,null,null,null,null,""]
[null,null,null,null,null,null,null,null,null,""]
[null,null,null,null,null,null,null,null,null,""]
[null,null,null,null,null,null,null,null,null,""]
[null,null,null,null,null,null,null,null,null,""]
[null,null,null,null,null,null,null,null,null,""]
[null,null,null,null,null,null,null,null,null,""]
[null,null,null,null,null,null,null,null,null,""]
[null,null,null,null,null,null,null,null,null,""]
[null,null,null,null,null,null,null,null,null,""]
[null,null,null,null,null,null,null,null,null,""]
[null,null,null,null,null,null,null,null,null,""]
[null,null,null,null,null,null,null,null,null,""]
[null,null,null,null,null,null,null,null,null,""]
[null,null,null,null,null,null,null,null,null,""]
[null,null,null,null,null,null,null,null,null,""]
[null,null,null,null,null,null,null,null,null,""]
[null,null,null,null,null,null,null,null,null,""]
[null,null,null,null,null,null,null,null,null,""]
[null,null,null,null,null,null,null,null,null,""]
[null,null,null,null,null,null,null,null,null,""]
[null,null,null,null,null,null,null,null,null,""]
[null,null,null,null,null,null,null,null,null,""]
[null,null,null,null,null,null,null,null,null,""]
[null,null,null,null,null,null,null,null,null,""]
[null,null,null,null,null,null,null,null,null,""]
[null,null,null,null,null,null,null,null,null,""]
[null,null,null,null,null,null,null,null,null,""]
[null,null,null,null,null,null,null,null,null,""]
[null,null,null,null,null,null,null,null,null,""]
[null,null,null,null,null,null,null,null,null,""]
[null,null,null,null,null,null,null,null,null,""]
[null,null,null,null,null,null,null,null,null,""]
[null,null,null,null,null,null,null,null,null,""]
[null,null,null,null,null,null,null,null,null,""]
[null,null,null,null,null,null,null,null,null,""]
[null,null,null,null,null,null,null,null,null,""]
[null,null,null,null,null,null,null,null,null,{"$f":"IF(AND(H773<>\"\",I773<>\"\"),H773*I773,\"\")","v":""}]
[null,null,null,null,null,null,null,null,null,""]
[null,null,null,null,null,null,null,null,null,""]
[null,null,null,null,null,null,null,null,null,""]
[null,null,null,null,null,null,null,null,null,""]
[null,null,null,null,null,null,null,null,null,""]
[null,null,null,null,null,null,null,null,null,""]
[null,null,null,null,null,null,null,null,null,""]
[null,null,null,null,null,null,null,null,null,""]
[null,null,null,null,null,null,null,null,null,""]
[null,null,null,null,null,null,null,null,null,""]
[null,null,null,null,null,null,null,null,null,""]
[null,null,null,null,null,null,null,null,null,""]
[null,null,null,null,null,null,null,null,null,""]
[null,null,null,null,null,null,null,null,null,""]
[null,null,null,null,null,null,null,null,null,""]
[null,null,null,null,null,null,null,null,null,""]
[null,null,null,null,null,null,null,null,null,""]
[null,null,null,null,null,null,null,null,null,""]
[null,null,null,null,null,null,null,null,null,""]
[null,null,null,null,null,null,null,null,null,""]
[null,null,null,null,null,null,null,null,null,""]
[null,null,null,null,null,null,null,null,null,""]
[null,null,null,null,null,null,null,null,null,""]
[null,null,null,null,null,null,null,null,null,""]
[null,null,null,null,null,null,null,null,null,""]
[null,null,null,null,null,null,null,null,null,""]
[null,null,null,null,null,null,null,null,null,""]
[null,null,null,null,null,null,null,null,null,""]
[null,null,null,null,null,null,null,null,null,""]
[null,null,null,null,null,null,null,null,null,""]
[null,null,null,null,null,null,null,null,null,""]
[null,null,null,null,null,null,null,null,null,""]
[null,null,null,null,null,null,null,null,null,""]
[null,null,null,null,null,null,null,null,null,""]
[null,null,null,null,null,null,null,null,null,""]
[null,null,null,null,null,null,null,null,null,""]
[null,null,null,null,null,null,null,null,null,""]
[null,null,null,null,null,null,null,null,null,""]
[null,null,null,null,null,null,null,null,null,""]
[null,null,null,null,null,null,null,null,null,""]
[null,null,null,null,null,null,null,null,null,""]
[null,null,null,null,null,null,null,null,null,""]
[null,null,null,null,null,null,null,null,null,""]
[null,null,null,null,null,null,null,null,null,""]
[null,null,null,null,null,null,null,null,null,""]
[null,null,null,null,null,null,null,null,null,""]
[null,null,null,null,null,null,null,null,null,""]
[null,null,null,null,null,null,null,null,null,""]
[null,null,null,null,null,null,null,null,null,""]
[null,null,null,null,null,null,null,null,null,""]
[null,null,null,null,null,null,null,null,null,""]
[null,null,null,null,null,null,null,null,null,""]
[null,null,null,null,null,null,null,null,null,""]
[null,null,null,null,null,null,null,null,null,""]
[null,null,null,null,null,null,null,null,null,""]
[null,null,null,null,null,null,null,null,null,""]
[null,null,null,null,null,null,null,null,null,""]
[null,null,null,null,null,null,null,null,null,""]
[null,null,null,null,null,null,null,null,null,""]
[null,null,null,null,null,null,null,null,null,""]
[null,null,null,null,null,null,null,null,null,""]
[null,null,null,null,null,null,null,null,null,""]
[null,null,null,null,null,null,null,null,null,""]
[null,null,null,null,null,null,null,null,null,{"$f":"IF(AND(H837<>\"\",I837<>\"\"),H837*I837,\"\")","v":""}]
[null,null,null,null,null,null,null,null,null,""]
[null,null,null,null,null,null,null,null,null,""]
[null,null,null,null,null,null,null,null,null,""]
[null,null,null,null,null,null,null,null,null,""]
[null,null,null,null,null,null,null,null,null,""]
[null,null,null,null,null,null,null,null,null,""]
[null,null,null,null,null,null,null,null,null,""]
[null,null,null,null,null,null,null,null,null,""]
[null,null,null,null,null,null,null,null,null,""]
[null,null,null,null,null,null,null,null,null,""]
[null,null,null,null,null,null,null,null,null,""]
[null,null,null,null,null,null,null,null,null,""]
[null,null,null,null,null,null,null,null,null,""]
[null,null,null,null,null,null,null,null,null,""]
[null,null,null,null,null,null,null,null,null,""]
[null,null,null,null,null,null,null,null,null,""]
[null,null,null,null,null,null,null,null,null,""]
[null,null,null,null,null,null,null,null,null,""]
[null,null,null,null,null,null,null,null,null,""]
[null,null,null,null,null,null,null,null,null,""]
[null,null,null,null,null,null,null,null,null,""]
[null,null,null,null,null,null,null,null,null,""]
[null,null,null,null,null,null,null,null,null,""]
[null,null,null,null,null,null,null,null,null,""]
[null,null,null,null,null,null,null,null,null,""]
[null,null,null,null,null,null,null,null,null,""]
[null,null,null,null,null,null,null,null,null,""]
[null,null,null,null,null,null,null,null,null,""]
[null,null,null,null,null,null,null,null,null,""]
[null,null,null,null,null,null,null,null,null,""]
[null,null,null,null,null,null,null,null,null,""]
[null,null,null,null,null,null,null,null,null,""]
[null,null,null,null,null,null,null,null,null,""]
[null,null,null,null,null,null,null,null,null,""]
[null,null,null,null,null,null,null,null,null,""]
[null,null,null,null,null,null,null,null,null,""]
[null,null,null,null,null,null,null,null,null,""]
[null,null,null,null,null,null,null,null,null,""]
[null,null,null,null,null,null,null,null,null,""]
[null,null,null,null,null,null,null,null,null,""]
[null,null,null,null,null,null,null,null,null,""]
[null,null,null,null,null,null,null,null,null,""]
[null,null,null,null,null,null,null,null,null,""]
[null,null,null,null,null,null,null,null,null,""]
[null,null,null,null,null,null,null,null,null,""]
[null,null,null,null,null,null,null,null,null,""]
[null,null,null,null,null,null,null,null,null,""]
[null,null,null,null,null,null,null,null,null,""]
[null,null,null,null,null,null,null,null,null,""]
[null,null,null,null,null,null,null,null,null,""]
[null,null,null,null,null,null,null,null,null,""]
[null,null,null,null,null,null,null,null,null,""]
[null,null,null,null,null,null,null,null,null,""]
[null,null,null,null,null,null,null,null,null,""]
[null,null,null,null,null,null,null,null,null,""]
[null,null,null,null,null,null,null,null,null,""]
[null,null,null,null,null,null,null,null,null,""]
[null,null,null,null,null,null,null,null,null,""]
[null,null,null,null,null,null,null,null,null,""]
[null,null,null,null,null,null,null,null,null,""]
[null,null,null,null,null,null,null,null,null,""]
[null,null,null,null,null,null,null,null,null,""]
[null,null,null,null,null,null,null,null,null,""]
[null,null,null,null,null,null,null,null,null,{"$f":"IF(AND(H901<>\"\",I901<>\"\"),H901*I901,\"\")","v":""}]
[null,null,null,null,null,null,null,null,null,""]
[null,null,null,null,null,null,null,null,null,""]
[null,null,null,null,null,null,null,null,null,""]
[null,null,null,null,null,null,null,null,null,""]
[null,null,null,null,null,null,null,null,null,""]
[null,null,null,null,null,null,null,null,null,""]
[null,null,null,null,null,null,null,null,null,""]
[null,null,null,null,null,null,null,null,null,""]
[null,null,null,null,null,null,null,null,null,""]
[null,null,null,null,null,null,null,null,null,""]
[null,null,null,null,null,null,null,null,null,""]
[null,null,null,null,null,null,null,null,null,""]
[null,null,null,null,null,null,null,null,null,""]
[null,null,null,null,null,null,null,null,null,""]
[null,null,null,null,null,null,null,null,null,""]
[null,null,null,null,null,null,null,null,null,""]
[null,null,null,null,null,null,null,null,null,""]
[null,null,null,null,null,null,null,null,null,""]
[null,null,null,null,null,null,null,null,null,""]
[null,null,null,null,null,null,null,null,null,""]
[null,null,null,null,null,null,null,null,null,""]
[null,null,null,null,null,null,null,null,null,""]
[null,null,null,null,null,null,null,null,null,""]
[null,null,null,null,null,null,null,null,null,""]
[null,null,null,null,null,null,null,null,null,""]
[null,null,null,null,null,null,null,null,null,""]
[null,null,null,null,null,null,null,null,null,""]
[null,null,null,null,null,null,null,null,null,""]
[null,null,null,null,null,null,null,null,null,""]
[null,null,null,null,null,null,null,null,null,""]
[null,null,null,null,null,null,null,null,null,""]
[null,null,null,null,null,null,null,null,null,""]
[null,null,null,null,null,null,null,null,null,""]
[null,null,null,null,null,null,null,null,null,""]
[null,null,null,null,null,null,null,null,null,""]
[null,null,null,null,null,null,null,null,null,""]
[null,null,null,null,null,null,null,null,null,""]
[null,null,null,null,null,null,null,null,null,""]
[null,null,null,null,null,null,null,null,null,""]
[null,null,null,null,null,null,null,null,null,""]
[null,null,null,null,null,null,null,null,null,""]
[null,null,null,null,null,null,null,null,null,""]
[null,null,null,null,null,null,null,null,null,""]
[null,null,null,null,null,null,null,null,null,""]
[null,null,null,null,null,null,null,null,null,""]
[null,null,null,null,null,null,null,null,null,""]
[null,null,null,null,null,null,null,null,null,""]
[null,null,null,null,null,null,null,null,null,""]
[null,null,null,null,null,null,null,null,null,""]
[null,null,null,null,null,null,null,null,null,""]
[null,null,null,null,null,null,null,null,null,""]
[null,null,null,null,null,null,null,null,null,""]
[null,null,null,null,null,null,null,null,null,""]
[null,null,null,null,null,null,null,null,null,""]
[null,null,null,null,null,null,null,null,null,""]
[null,null,null,null,null,null,null,null,null,""]
[null,null,null,null,null,null,null,null,null,""]
[null,null,null,null,null,null,null,null,null,""]
[null,null,null,null,null,null,null,null,null,""]
[null,null,null,null,null,null,null,null,null,""]
[null,null,null,null,null,null,null,null,null,""]
[null,null,null,null,null,null,null,null,null,""]
[null,null,null,null,null,null,null,null,null,""]
[null,null,null,null,null,null,null,null,null,{"$f":"IF(AND(H965<>\"\",I965<>\"\"),H965*I965,\"\")","v":""}]
[null,null,null,null,null,null,null,null,null,""]
[null,null,null,null,null,null,null,null,null,""]
[null,null,null,null,null,null,null,null,null,""]
[null,null,null,null,null,null,null,null,null,""]
[null,null,null,null,null,null,null,null,null,""]
[null,null,null,null,null,null,null,null,null,""]
[null,null,null,null,null,null,null,null,null,""]
[null,null,null,null,null,null,null,null,null,""]
[null,null,null,null,null,null,null,null,null,""]
[null,null,null,null,null,null,null,null,null,""]
[null,null,null,null,null,null,null,null,null,""]
[null,null,null,null,null,null,null,null,null,""]
[null,null,null,null,null,null,null,null,null,""]
[null,null,null,null,null,null,null,null,null,""]
[null,null,null,null,null,null,null,null,null,""]
[null,null,null,null,null,null,null,null,null,""]
[null,null,null,null,null,null,null,null,null,""]
[null,null,null,null,null,null,null,null,null,""]
[null,null,null,null,null,null,null,null,null,""]
[null,null,null,null,null,null,null,null,null,""]
[null,null,null,null,null,null,null,null,null,""]
[null,null,null,null,null,null,null,null,null,""]
[null,null,null,null,null,null,null,null,null,""]
[null,null,null,null,null,null,null,null,null,""]
[null,null,null,null,null,null,null,null,null,""]
[null,null,null,null,null,null,null,null,null,""]
[null,null,null,null,null,null,null,null,null,""]
[null,null,null,null,null,null,null,null,null,""]
[null,null,null,null,null,null,null,null,null,""]
[null,null,null,null,null,null,null,null,null,""]
[null,null,null,null,null,null,null,null,null,""]
[null,null,null,null,null,null,null,null,null,""]
[null,null,null,null,null,null,null,null,null,""]
[null,null,null,null,null,null,null,null,null,""]
[null,null,null,null,null,null,null,null,null,""]
[null,null,null,null,null,null,null,null,null,""]
[null,null,null,null,null,null,null,null,null,""]
[null,null,null,null,null,null,null,null,null,""]
[10000]

{"sheet":"Totaalblad","index":3,"n_rows":43,"n_cols":14,"rows_kept":43,"cut":false,"hidden":false,"merged":[[35,3,35,8],[6,1,6,2],[5,1,5,2],[26,10,35,14],[25,10,25,14],[8,4,8,8],[20,1,21,14],[16,5,16,7],[23,1,23,16],[11,1,11,2],[22,1,22,4],[18,1,18,10],[16,1,16,2],[9,1,9,2],[17,5,17,7],[26,3,26,8],[15,5,15,7],[16,3,16,4],[11,3,11,8],[27,1,34,8],[0,11,0,12],[0,9,0,10],[4,10,4,14],[5,13,5,14],[5,3,5,8],[10,1,10,2],[7,3,7,8],[6,3,6,8],[10,3,10,8],[9,3,9,8],[7,1,7,2],[8,1,8,2]]}
[null,"Financiële productieverantwoording Wmo op totaalniveau",null,null,null,null,null,null,null,2022]
[]
[null,"Zorgaanbieder "]
[]
[null,"Zorgaanbieder",null,null,null,null,null,null,null,null,"Versiebeheer"]
[null,"Naam",null,null,null,null,null,null,null,null,"Versiedatum",null,null,{"$f":"MAX(Versiebeheer!B11:B20)","v":"2022-10-03"}]
[null,"Plaats"]
[null,"KvK-nummer"]
[null,"Contactpersoon"]
[null,"Telefoon"]
[null,"E-mail"]
[null,"AGB-code"]
[]
[]
[]
[null,"Financieringsstroom",null,null,null,{"$f":"\"Gerealiseerde productie \"&J1","v":"Gerealiseerde productie 2022"}]
[null,"Wmo",null,null,null,{"$f":"SUM(begin:einde!R1)","v":0}]
[null,"TOTAAL gerealiseerde productie ",null,null,null,{"$f":"F17","v":0}]
[]
[null,{"$f":"\"Door ondertekening van het formulier 'Financiële productieverantwoording \"&J1&\"':\"","v":"Door ondertekening van het formulier 'Financiële productieverantwoording 2022':"}]
[null,{"$f":"\"Verklaart de bestuurder van de zorgaanbieder dat de financiële productieverantwoording Wmo \"&J1&\" naar waarheid en in overeenstemming met het normenkader (zie paragraaf Normen- en\"&\" toetsingskader, Algemeen Accountantsprotocol 2022) is verantwoord.\"","v":"Verklaart de bestuurder van de zorgaanbieder dat de financiële productieverantwoording Wmo 2022 naar waarheid en in overeenstemming met het normenkader (zie paragraaf Normen- en toetsingskader, Algemeen Accountantsprotocol 2022) is verantwoord."}]
[]
[]
[]
[]
[null,"Zorgaanbieder",null,null,null,null,null,null,null,null,"Waarmerking Accountant voor identificatiedoeleinden:"]
[null,"Naam ondertekenaar:",null,null,null,null,null,null,null,null,"behorend bij verklaring afgegeven d.d.:"]
[null,"Handtekening:"]
[]
[]
[]
[]
[]
[]
[]
[null,"Datum:"]
[]
[]
[]
[]
[]
[]
[null,"  "]

{"sheet":"Tussenblad","index":4,"n_rows":0,"n_cols":0,"rows_kept":0,"cut":false,"hidden":true,"merged":[]}

{"sheet":"Overzicht gemeenten","index":5,"n_rows":51,"n_cols":14,"rows_kept":51,"cut":false,"hidden":false,"merged":[[41,10,50,14],[21,2,21,9],[22,2,22,9],[30,2,30,9],[32,2,32,9],[23,2,23,9],[40,10,40,14],[24,2,24,9],[28,2,28,9],[29,2,29,9],[9,2,9,9],[10,2,10,9],[25,2,25,9],[26,2,26,9],[27,2,27,9],[14,2,14,9],[11,2,11,9],[12,2,12,9],[13,2,13,9],[20,2,20,9],[15,2,15,9],[16,2,16,9],[17,2,17,9],[19,2,19,9],[18,2,18,9]]}
[null,"Overzicht gemeenten waarop financiële productieverantwoording WMO op totaalniveau betrekking heeft"]
[]
[]
[]
[]
[]
[]
[]
[null,0,"Gemeente(n)"]
[null,1,"Asten"]
[null,2,"Bergeijk"]
[null,3,"Best"]
[null,4,"Bladel"]
[null,5,"Cranendonck"]
[null,6,"Deurne"]
[null,7,"Eersel"]
[null,8,"Eindhoven"]
[null,9,"Geldrop-Mierlo"]
[null,10,"Gemert-Bakel"]
[null,11,"Heeze-Leende"]
[null,12,"Helmond"]
[null,13,"Laarbeek"]
[null,14,"Nuenen"]
[null,15,"Oirschot"]
[null,16,"Reusel-De Mierden"]
[null,17,"Someren"]
[null,18,"Son en Breugel"]
[null,19,"Valkenswaard"]
[null,20,"Veldhoven"]
[null,21,"Waalre"]
[null,22]
[null,500,null,null,null,null,null,null,null,null,null,null,null,"hide row"]
[null,null,null,null,null,null,null,null,null,null,null,null,null,"hide row"]
[]
[]
[]
[]
[]
[]
[]
[null,"Zorgaanbieder",null,null,null,null,null,null,null,null,"Waarmerking Accountant voor identificatiedoeleinden:"]
[null,{"$f":"CONCATENATE(\"Naam: \"&Totaalblad!$D$27)","v":"Naam: "},null,null,null,null,null,null,null,null,"behorend bij verklaring afgegeven d.d.:"]
[null,"Handtekening:"]
[]
[]
[]
[]
[]
[]
[]
[null,{"$f":"CONCATENATE(\"Datum: \"&Totaalblad!$D$36)","v":"Datum: "}]

{"sheet":"Versiebeheer","index":6,"n_rows":11,"n_cols":6,"rows_kept":11,"cut":false,"hidden":false,"merged":[]}
[]
[null,"Versiebeheer"]
[]
[null,{"$f":"\"In onderstaande tabel ziet u welke mutaties er zijn ten opzichte van eerdere versies van het formulier Financiële productieverantwoording \"&Totaalblad!J1","v":"In onderstaande tabel ziet u welke mutaties er zijn ten opzichte van eerdere versies van het formulier Financiële productieverantwoording 2022"}]
[null,"Hiermee kunt u bepalen of de gedane aanpassingen voor u van belang zijn. "]
[]
[null,"De eerste versie van het formulier is van:",null,null,"2022-10-03"]
[null,"De huidige versie van het formulier is van:",null,null,{"$f":"MAX(B11:B20)","v":"2022-10-03"}]
[]
[null,"Versie","Werkblad","Regel(s)","Foutmelding","Aanpassing"]
[null,"2022-10-03",null,null,null,"Uitleverversie 1.0"]

{"sheet":"begin","index":7,"n_rows":0,"n_cols":0,"rows_kept":0,"cut":false,"hidden":true,"merged":[]}

{"sheet":"Gemeente x","index":8,"n_rows":198,"n_cols":18,"rows_kept":198,"cut":false,"hidden":true,"merged":[[85,2,85,5],[150,2,150,5],[63,2,63,5],[64,2,64,5],[134,2,134,5],[100,2,100,5],[147,2,147,5],[128,2,128,5],[156,2,156,5],[148,2,148,5],[168,2,177,10],[166,1,166,10],[165,2,165,9],[149,2,149,5],[179,1,179,10],[180,1,189,1],[167,1,167,10],[180,2,189,10],[168,1,177,1],[22,2,22,5],[34,2,34,5],[12,8,12,9],[86,2,86,5],[119,2,119,5],[71,2,71,5],[56,2,56,5],[93,2,93,5],[99,2,99,5],[113,2,113,5],[114,2,114,5],[29,2,29,5],[35,2,35,5],[79,2,79,5],[57,2,57,5],[65,2,65,5],[13,8,13,9],[8,3,8,6],[9,3,9,6],[11,3,11,6],[20,2,20,5],[10,3,10,6],[11,1,11,2],[18,3,18,5],[21,2,21,5],[107,2,107,5],[192,9,192,10],[77,2,77,5],[155,2,155,5],[72,2,72,5],[49,2,49,5],[27,2,27,5],[43,2,43,5],[50,2,50,5],[28,2,28,5],[36,2,36,5],[42,2,42,5],[41,2,41,5],[48,2,48,5],[135,2,135,5],[0,8,2,10],[7,8,7,10],[191,9,191,10],[105,2,105,5],[112,2,112,5],[8,1,8,2],[140,2,140,5],[70,2,70,5],[8,8,8,9],[9,8,9,9],[10,8,10,9],[11,8,11,9],[157,2,157,5],[142,2,142,5],[14,8,14,9],[84,2,84,5],[197,1,197,7],[55,2,55,6],[91,2,91,5],[92,2,92,5],[78,2,78,5],[106,2,106,5],[141,2,141,5],[58,2,58,5],[126,2,126,5],[133,2,133,5],[98,2,98,5],[164,2,164,9],[193,9,193,10],[121,2,121,5],[120,2,120,5],[127,2,127,5]]}
[null,"Financiële productieverantwoording Wmo",null,null,null,null,null,null,{"$f":"\"Gemeente \"&D9","v":"Gemeente "},null,null,null,null,null,null,null,"wmo",{"$f":"K164","v":0}]
[]
[null,null,null,null,null,null,null,null,null,null,null,null,null,null,null,null,"jeugd"]
[null,"In dit onderdeel verantwoordt de zorgaanbieder de geleverde prestaties waarover de zorgaanbieder verantwoording af dient te leggen bij de gemeente:  "]
[null,"geleverde prestaties met als grondslag de Wmo. Alle aantallen worden op basis van de werkelijke realisatie ingevuld. "]
[]
[]
[null,"Gemeente ",null,null,null,null,null,null,"Zorgaanbieder"]
[null,"Naam",null,null,null,null,null,null,"Naam",null,{"$f":"Totaalblad!D6","v":0}]
[null,"Contactpersoon",null,null,null,null,null,null,"Plaats",null,{"$f":"Totaalblad!D7","v":0}]
[null,"Telefoon",null,null,null,null,null,null,"KvK-nummer",null,{"$f":"Totaalblad!D8","v":0}]
[null,"E-mail",null,null,null,null,null,null,"Contactpersoon Wmo",null,{"$f":"IF(Totaalblad!E9=\"\",\"\",Totaalblad!E9)","v":""}]
[null,null,null,null,null,null,null,null,"Telefoon",null,{"$f":"IF(Totaalblad!D10=\"\",\"\",Totaalblad!D10)","v":""}]
[null,null,null,null,null,null,null,null,"E-mail",null,{"$f":"IF(Totaalblad!D11=\"\",\"\",Totaalblad!D11)","v":""}]
[null,null,null,null,null,null,null,null,"AGB-code",null,{"$f":"Totaalblad!D12","v":0}]
[]
[]
[null,"Geleverde prestaties Wmo"]
[null,null,"Inkoop order nr: "]
[]
[null,1,"Hulp bij het huishouden",null,null,null,"Code","Eenheid","Aantal (Q)","Prijs in € (P)",{"$f":"\"Realisatie \"&Totaalblad!$J$1&\" in €\"","v":"Realisatie 2022 in €"}]
[null,100,null,null,null,null,null,null,null,null,{"$f":"I22*J22","v":0}]
[null,101,null,null,null,null,null,null,null,null,{"$f":"I23*J23","v":0}]
[null,199]
[null,null,"Totaal Hulp bij het huishouden",null,null,null,null,null,null,null,{"$f":"SUM(K22:K24)","v":0}]
[]
[]
[null,2,"Begeleiding",null,null,null,"Code","Eenheid","Aantal (Q)","Prijs in € (P)",{"$f":"\"Realisatie \"&Totaalblad!$J$1&\" in €\"","v":"Realisatie 2022 in €"}]
[null,200,null,null,null,null,null,null,null,null,{"$f":"I29*J29","v":0}]
[null,201,null,null,null,null,null,null,null,null,{"$f":"I30*J30","v":0}]
[null,299]
[null,null,"Totaal Begeleiding",null,null,null,null,null,null,null,{"$f":"SUM(K29:K31)","v":0}]
[]
[]
[null,3,"Persoonlijke verzorging",null,null,null,"Code","Eenheid","Aantal (Q)","Prijs in € (P)",{"$f":"\"Realisatie \"&Totaalblad!$J$1&\" in €\"","v":"Realisatie 2022 in €"}]
[null,300,null,null,null,null,null,null,null,null,{"$f":"I36*J36","v":0}]
[null,301,null,null,null,null,null,null,null,null,{"$f":"I37*J37","v":0}]
[null,399]
[null,null,"Totaal Persoonlijke verzorging",null,null,null,null,null,null,null,{"$f":"SUM(K36:K38)","v":0}]
[]
[]
[null,4,"Kortdurend verblijf",null,null,null,"Code","Eenheid","Aantal (Q)","Prijs in € (P)",{"$f":"\"Realisatie \"&Totaalblad!$J$1&\" in €\"","v":"Realisatie 2022 in €"}]
[null,400,null,null,null,null,null,null,null,null,{"$f":"I43*J43","v":0}]
[null,401,null,null,null,null,null,null,null,null,{"$f":"I44*J44","v":0}]
[null,499]
[null,null,"Totaal Kortdurend verblijf",null,null,null,null,null,null,null,{"$f":"SUM(K43:K45)","v":0}]
[]
[]
[null,5,"Woondiensten",null,null,null,"Code","Eenheid","Aantal (Q)","Prijs in € (P)",{"$f":"\"Realisatie \"&Totaalblad!$J$1&\" in €\"","v":"Realisatie 2022 in €"}]
[null,500,null,null,null,null,null,null,null,null,{"$f":"I50*J50","v":0}]
[null,501,null,null,null,null,null,null,null,null,{"$f":"I51*J51","v":0}]
[null,599]
[null,null,"Totaal Woondiensten",null,null,null,null,null,null,null,{"$f":"SUM(K50:K52)","v":0}]
[]
[]
[]
[null,6,"Overige ondersteuning gericht op het individu of huishouden/gezin",null,null,null,"Code","Eenheid","Aantal (Q)","Prijs in € (P)",{"$f":"\"Realisatie \"&Totaalblad!$J$1&\" in €\"","v":"Realisatie 2022 in €"}]
[null,600,null,null,null,null,null,null,null,null,{"$f":"I58*J58","v":0}]
[null,601,null,null,null,null,null,null,null,null,{"$f":"I59*J59","v":0}]
[null,699]
[null,null,"Totaal Overige ondersteuning gericht op het individu of huishouden/gezin",null,null,null,null,null,null,null,{"$f":"SUM(K58:K60)","v":0}]
[]
[]
[null,7,"Dagbesteding",null,null,null,"Code","Eenheid","Aantal (Q)","Prijs in € (P)",{"$f":"\"Realisatie \"&Totaalblad!$J$1&\" in €\"","v":"Realisatie 2022 in €"}]
[null,700,null,null,null,null,null,null,null,null,{"$f":"I65*J65","v":0}]
[null,701,null,null,null,null,null,null,null,null,{"$f":"I66*J66","v":0}]
[null,799]
[null,null,"Totaal Dagbesteding",null,null,null,null,null,null,null,{"$f":"SUM(K65:K67)","v":0}]
[]
[]
[null,8,"Vervoerdiensten",null,null,null,"Code","Eenheid","Aantal (Q)","Prijs in € (P)",{"$f":"\"Realisatie \"&Totaalblad!$J$1&\" in €\"","v":"Realisatie 2022 in €"}]
[null,800,null,null,null,null,null,null,null,null,{"$f":"I72*J72","v":0}]
[null,801,null,null,null,null,null,null,null,null,{"$f":"I73*J73","v":0}]
[null,899]
[null,null,"Totaal Vervoerdiensten",null,null,null,null,null,null,null,{"$f":"SUM(K72:K74)","v":0}]
[]
[]
[null,9,"Overige groepsgerichte ondersteuning",null,null,null,"Code","Eenheid","Aantal (Q)","Prijs in € (P)",{"$f":"\"Realisatie \"&Totaalblad!$J$1&\" in €\"","v":"Realisatie 2022 in €"}]
[null,900,null,null,null,null,null,null,null,null,{"$f":"I79*J79","v":0}]
[null,901,null,null,null,null,null,null,null,null,{"$f":"I80*J80","v":0}]
[null,999]
[null,null,"Totaal Overige groepsgerichte ondersteuning",null,null,null,null,null,null,null,{"$f":"SUM(K79:K81)","v":0}]
[]
[]
[null,10,"Overige maatwerk arrangementen",null,null,null,"Code","Eenheid","Aantal (Q)","Prijs in € (P)",{"$f":"\"Realisatie \"&Totaalblad!$J$1&\" in €\"","v":"Realisatie 2022 in €"}]
[null,1000,null,null,null,null,null,null,null,null,{"$f":"I86*J86","v":0}]
[null,1001,null,null,null,null,null,null,null,null,{"$f":"I87*J87","v":0}]
[null,1099]
[null,null,"Totaal Overige maatwerk arrangementen",null,null,null,null,null,null,null,{"$f":"SUM(K86:K88)","v":0}]
[]
[]
[null,11,"Rolstoelen",null,null,null,"Code","Eenheid","Aantal (Q)","Prijs in € (P)",{"$f":"\"Realisatie \"&Totaalblad!$J$1&\" in €\"","v":"Realisatie 2022 in €"}]
[null,1100,null,null,null,null,null,null,null,null,{"$f":"I93*J93","v":0}]
[null,1101,null,null,null,null,null,null,null,null,{"$f":"I94*J94","v":0}]
[null,1199]
[null,null,"Totaal Rolstoelen",null,null,null,null,null,null,null,{"$f":"SUM(K93:K95)","v":0}]
[]
[]
[null,12,"Vervoervoorzieningen",null,null,null,"Code","Eenheid","Aantal (Q)","Prijs in € (P)",{"$f":"\"Realisatie \"&Totaalblad!$J$1&\" in €\"","v":"Realisatie 2022 in €"}]
[null,1200,null,null,null,null,null,null,null,null,{"$f":"I100*J100","v":0}]
[null,1201,null,null,null,null,null,null,null,null,{"$f":"I101*J101","v":0}]
[null,1299]
[null,null,"Totaal Vervoervoorzieningen",null,null,null,null,null,null,null,{"$f":"SUM(K100:K102)","v":0}]
[]
[]
[null,13,"Woonvoorzieningen",null,null,null,"Code","Eenheid","Aantal (Q)","Prijs in € (P)",{"$f":"\"Realisatie \"&Totaalblad!$J$1&\" in €\"","v":"Realisatie 2022 in €"}]
[null,1300,null,null,null,null,null,null,null,null,{"$f":"I107*J107","v":0}]
[null,1301,null,null,null,null,null,null,null,null,{"$f":"I108*J108","v":0}]
[null,1399]
[null,null,"Totaal Woonvoorzieningen",null,null,null,null,null,null,null,{"$f":"SUM(K107:K109)","v":0}]
[]
[]
[null,14,"Overige hulpmiddelen",null,null,null,"Code","Eenheid","Aantal (Q)","Prijs in € (P)",{"$f":"\"Realisatie \"&Totaalblad!$J$1&\" in €\"","v":"Realisatie 2022 in €"}]
[null,1400,null,null,null,null,null,null,null,null,{"$f":"I114*J114","v":0}]
[null,1401,null,null,null,null,null,null,null,null,{"$f":"I115*J115","v":0}]
[null,1499]
[null,null,"Totaal Overige hulpmiddelen",null,null,null,null,null,null,null,{"$f":"SUM(K114:K116)","v":0}]
[]
[]
[null,15,"Beschermd wonen",null,null,null,"Code","Eenheid","Aantal (Q)","Prijs in € (P)",{"$f":"\"Realisatie \"&Totaalblad!$J$1&\" in €\"","v":"Realisatie 2022 in €"}]
[null,1500,null,null,null,null,null,null,null,null,{"$f":"I121*J121","v":0}]
[null,1501,null,null,null,null,null,null,null,null,{"$f":"I122*J122","v":0}]
[null,1599]
[null,null,"Totaal Beschermd wonen",null,null,null,null,null,null,null,{"$f":"SUM(K121:K123)","v":0}]
[]
[]
[null,16,"Opvang",null,null,null,"Code","Eenheid","Aantal (Q)","Prijs in € (P)",{"$f":"\"Realisatie \"&Totaalblad!$J$1&\" in €\"","v":"Realisatie 2022 in €"}]
[null,1600,null,null,null,null,null,null,null,null,{"$f":"I128*J128","v":0}]
[null,1601,null,null,null,null,null,null,null,null,{"$f":"I129*J129","v":0}]
[null,1699]
[null,null,"Totaal Opvang",null,null,null,null,null,null,null,{"$f":"SUM(K128:K130)","v":0}]
[]
[]
[null,17,"Spoedopvang",null,null,null,"Code","Eenheid","Aantal (Q)","Prijs in € (P)",{"$f":"\"Realisatie \"&Totaalblad!$J$1&\" in €\"","v":"Realisatie 2022 in €"}]
[null,1700,null,null,null,null,null,null,null,null,{"$f":"I135*J135","v":0}]
[null,1701,null,null,null,null,null,null,null,null,{"$f":"I136*J136","v":0}]
[null,1799]
[null,null,"Totaal Spoedopvang",null,null,null,null,null,null,null,{"$f":"SUM(K135:K137)","v":0}]
[]
[]
[null,18,"Overige beschermd wonen en opvang",null,null,null,"Code","Eenheid","Aantal (Q)","Prijs in € (P)",{"$f":"\"Realisatie \"&Totaalblad!$J$1&\" in €\"","v":"Realisatie 2022 in €"}]
[null,1800,null,null,null,null,null,null,null,null,{"$f":"I142*J142","v":0}]
[null,1801,null,null,null,null,null,null,null,null,{"$f":"I143*J143","v":0}]
[null,1899]
[null,null,"Totaal Overige beschermd wonen en opvang",null,null,null,null,null,null,null,{"$f":"SUM(K142:K144)","v":0}]
[]
[]
[null,19,"Overige geleverde prestaties of vergoedingen",null,null,null,"Code","Financierings-\nvorm","Aantal (Q)","Prijs in € (P)",{"$f":"\"Realisatie \"&Totaalblad!$J$1&\" in €\"","v":"Realisatie 2022 in €"},null," "]
[null,1900,"Subsidiabele kosten ",null,null,null,null,null,null,null,{"$f":"I149*J149","v":0}]
[null,1901,"Lumpsum ",null,null,null,null,null,null,null,{"$f":"I150*J150","v":0}]
[null,1902,"Correcties",null,null,null,null,null,null,null,{"$f":"I151*J151","v":0}]
[null,1999]
[null,null,"Totaal Overige geleverde prestaties of vergoedingen",null,null,null,null,null,null,null,{"$f":"SUM(K149:K152)","v":0}]
[]
[]
[null,20,"Landelijke inkoopafspraken specialistische begeleiding ZG",null,null,null,"Code","Eenheid","Aantal (Q)","Prijs in € (P)",{"$f":"\"Realisatie \"&Totaalblad!$J$1&\" in €\"","v":"Realisatie 2022 in €"}]
[null,2000,null,null,null,null,null,null,null,null,{"$f":"I157*J157","v":0}]
[null,2001,null,null,null,null,null,null,null,null,{"$f":"I158*J158","v":0}]
[null,2099]
[null,null,"Totaal Landelijke inkoopafspraken specialistische begeleiding ZG",null,null,null,null,null,null,null,{"$f":"SUM(K157:K159)","v":0}]
[]
[]
[null,21,"Financiële realisatie Wmo prestaties",null,null,null,null,null,null,null,{"$f":"\"Realisatie \"&Totaalblad!$J$1&\" in €\"","v":"Realisatie 2022 in €"}]
[null,2100,"Gerealiseerde productie Wmo",null,null,null,null,null,null,null,{"$f":"SUM(K39+K32+K25+K53+K61+K46+K68+K75+K82+K89+K96+K103+K110+K117+K124+K131+K138+K145+K153+K160)","v":0}]
[null,{"$f":"B164+1","v":2101},"Afgesproken budget Wmo"]
[null,{"$f":"B165+1","v":2102},"Gerealiseerde omzet Wmo",null,null,null,null,null,null,null,{"$f":"IF(K164>K165,K165,K164)","v":0}]
[]
[null,"Ruimte voor toelichting in verband met ongecorrigeerde afwijkingen en onzekerheden"]
[]
[]
[]
[]
[]
[]
[]
[]
[]
[]
[]
[null,"Ruimte voor algemene toelichting"]
[]
[]
[]
[]
[]
[]
[]
[]
[]
[]
[]
[null,"Zorgaanbieder",null,null,null,null,null,null,null,"Rapport van bevindingen:"]
[null,{"$f":"CONCATENATE(\"Naam: \"&Totaalblad!$D$27)","v":"Naam: "},null,null,null,null,null,null,null,"Ja/Nee"]
[null,"Handtekening:",null,null,null,null,null,null,null,"A.u.b. kiezen wat van toepassing is."]
[]
[]
[]
[null,{"$f":"CONCATENATE(\"Datum: \"&Totaalblad!$D$36)","v":"Datum: "}]

{"sheet":"einde","index":9,"n_rows":0,"n_cols":0,"rows_kept":0,"cut":false,"hidden":true,"merged":[]}

{"sheet":"Categorie","index":10,"n_rows":21,"n_cols":2,"rows_kept":21,"cut":false,"hidden":true,"merged":[]}
["NR","Productcategorie"]
[1,"Hulp bij het huishouden"]
[2,"Begeleiding "]
[3,"Persoonlijke verzorging"]
[4,"Kortdurend verblijf"]
[5,"Woondiensten"]
[6,"Overige ondersteuning gericht op het individu of huishouden/gezin"]
[7,"Dagbesteding"]
[8,"Vervoerdiensten"]
[9,"Overige groepsgerichte ondersteuning"]
[10,"Overige maatwerk arrangementen"]
[11,"Rolstoelen"]
[12,"Vervoervoorzieningen"]
[13,"Woonvoorzieningen"]
[14,"Overige hulpmiddelen"]
[15,"Beschermd wonen"]
[16,"Opvang"]
[17,"Spoedopvang"]
[18,"Overige beschermd wonen en opvang"]
[19,"Overige geleverde prestaties of vergoedingen"]
[20,"Landelijke inkoopafspraken specialistische begeleiding ZG"]

{"sheet":"Productcodes","index":11,"n_rows":371,"n_cols":3,"rows_kept":371,"cut":false,"hidden":false,"merged":[]}
["IWMO 3.1","WMO021 - PRODUCTCODE","CODE"]
["Versie",{"$f":"MAX(Versiebeheer!B11:B20)","v":"2022-10-03"}]
[null,"Betekenis","Code"]
[1,"Hulp bij het huishouden"]
[null,"Hulp bij het huishouden: outputgericht","01A00"]
[null,"HH 1: outputgericht","01A01"]
[null,"HH 2: outputgericht","01A02"]
[null,"HH 3: outputgericht","01A03"]
[null,"HH 1: inspanningsgericht","01A04"]
[null,"HH 2: inspanningsgericht","01A05"]
[null,"HH 3: inspanningsgericht","01A06"]
[null,"HH 1: outputgericht (licht)","01A07"]
[null,"HH 1: outputgericht (middel)","01A08"]
[null,"HH 1: outputgericht (middelzwaar)","01A09"]
[null,"HH 1: outputgericht (zwaar)","01A10"]
[null,"HH 1: outputgericht (extra zwaar)","01A11"]
[null,"HH 2: outputgericht (licht)","01A12"]
[null,"HH 2: outputgericht (middel)","01A13"]
[null,"HH 2: outputgericht (middelzwaar)","01A14"]
[null,"HH 2: outputgericht (zwaar)","01A15"]
[null,"HH 2: outputgericht (extra zwaar)","01A16"]
[null,"HH 3: outputgericht (licht)","01A17"]
[null,"HH 3: outputgericht (middel)","01A18"]
[null,"HH 3: outputgericht (middelzwaar)","01A19"]
[null,"HH 3: outputgericht (zwaar)","01A20"]
[null,"HH 3: outputgericht (extra zwaar)","01A21"]
[null,"HH1 (huishoudelijke werkzaamheden)",1001]
[null,"HH2 (organisatie van het huishouden)",1002]
[2,"Begeleiding "]
[null,"Begeleiding regulier: outputgericht","02A01"]
[null,"Begeleiding specialistisch: outputgericht","02A02"]
[null,"Begeleiding regulier: inspanningsgericht","02A03"]
[null,"Begeleiding mantelzorg: inspanningsgericht","02A04"]
[null,"Begeleiding specialistisch: inspanningsgericht","02A05"]
[null,"Begeleiding regulier: outputgericht (licht)","02A06"]
[null,"Begeleiding regulier: outputgericht (middel)","02A07"]
[null,"Begeleiding regulier: outputgericht (middelzwaar)","02A08"]
[null,"Begeleiding regulier: outputgericht (zwaar)","02A09"]
[null,"Begeleiding regulier: outputgericht (extra zwaar)","02A10"]
[null,"Begeleiding specialistisch: outputgericht (licht)","02A11"]
[null,"Begeleiding specialistisch: outputgericht (middel)","02A12"]
[null,"Begeleiding specialistisch: outputgericht (middelzwaar)","02A13"]
[null,"Begeleiding specialistisch: outputgericht (zwaar)","02A14"]
[null,"Begeleiding specialistisch: outputgericht (extra zwaar)","02A15"]
[null,"Begeleiding regulier: inspanningsgericht (individueel)","02A16"]
[null,"Begeleiding regulier: inspanningsgericht (groep)","02A17"]
[null,"Begeleiding regulier: inspanningsgericht (op afstand)","02A18"]
[null,"Begeleiding specialistisch: inspanningsgericht (individueel)","02A19"]
[null,"Begeleiding specialistisch: inspanningsgericht (groep)","02A20"]
[null,"Begeleiding specialistisch: inspanningsgericht (op afstand)","02A21"]
[null,"Begeleiding laag tarief: inspanningsgericht","02A22"]
[null,"Begeleiding GGZ: outputgericht (licht)","02A23"]
[null,"Begeleiding GGZ: outputgericht (middel)","02A24"]
[null,"Begeleiding GGZ: outputgericht (zwaar)","02A25"]
[null,"Begeleiding GHZ: outputgericht (licht)","02A26"]
[null,"Begeleiding GHZ: outputgericht (middel)","02A27"]
[null,"Begeleiding GHZ: outputgericht (zwaar)","02A28"]
[null,"Begeleiding VV&T: outputgericht (licht)","02A29"]
[null,"Begeleiding VV&T: outputgericht (middel)","02A30"]
[null,"Begeleiding VV&T: outputgericht (zwaar)","02A31"]
[null,"Mantelzorg GGZ: outputgericht (licht)","02A32"]
[null,"Mantelzorg GGZ: outputgericht (middel)","02A33"]
[null,"Mantelzorg GGZ: outputgericht (zwaar)","02A34"]
[null,"Mantelzorg GHZ: outputgericht (licht)","02A35"]
[null,"Mantelzorg GHZ: outputgericht (middel)","02A36"]
[null,"Mantelzorg GHZ: outputgericht (zwaar)","02A37"]
[null,"Mantelzorg VV&T: outputgericht (licht)","02A38"]
[null,"Mantelzorg VV&T: outputgericht (middel)","02A39"]
[null,"Mantelzorg VV&T: outputgericht (zwaar)","02A40"]
[null,"Vroegdoven: Toeleiding (landelijke inkoop ZG)","02L01"]
[null,"Vroegdoven: Verlengde toeleiding (landelijke inkoop ZG)","02L02"]
[null,"Vroegdoven: Consultatie (landelijke inkoop ZG)","02L03"]
[null,"Vroegdoven: Dovenmaatschappelijkwerk(landelijke inkoop ZG)","02L04"]
[null,"Vroegdoven: Gespecialiseerde begeleiding (landelijke inkoop ZG)","02L05"]
[null,"Vroegdoven: Revaliderende begeleiding (landelijke inkoop ZG)","02L06"]
[null,"Doofblinden: Toeleiding (landelijke inkoop ZG)","02L08"]
[null,"Doofblinden: Verlengde toeleiding (landelijke inkoop ZG)","02L09"]
[null,"Doofblinden: Consultatie (landelijke inkoop ZG)","02L10"]
[null,"Doofblinden: Dovenmaatschappelijkwerk (landelijke inkoop ZG)","02L11"]
[null,"Doofblinden: Gespecialiseerde begeleiding (landelijke inkoop ZG)","02L12"]
[null,"Doofblinden: Begeleidersvoorziening (landelijke inkoop ZG)","02L13"]
[null,"Visueel: gespecialiseerde begeleiding (landelijke inkoop ZG)","02L15"]
[null,"Aanbrengen van structuur c.q. voeren van regie",2001]
[null,"Begeleiding bij beperkingen in de ontwikkeling",2002]
[null,"Begeleiding bij fysieke beperkingen",2003]
[null,"Begeleiding bij psychosociale beperkingen",2004]
[null,"Begeleiding bij vervoer",2005]
[null,"Begeleiding bij/naar het zelfstandig wonen",2006]
[null,"Oefenen (onder begeleiding) ",2007]
[null,"Ondersteuning bij praktische handelingen/vaardigheden",2008]
[null,"Sociale relaties en maatschappelijk leven",2009]
[null,"Toezicht",2010]
[null,"Toeleiding ZG",2011]
[null,"Verlengde toeleiding ZG",2012]
[null,"Consultatie ZG",2013]
[null,"Beantwoording korte begeleidingsvragen ZG",2014]
[null,"Gespecialiseerde begeleiding ZG",2015]
[null,"Revaliderende begeleiding ZG",2016]
[null,"Begeleidersvoorziening doofblinden",2017]
[null,"Doventolk",2018]
[3,"Persoonlijke verzorging"]
[null,"Persoonlijke verzorging specialistisch: outputgericht","03A01"]
[null,"Persoonlijke verzorging regulier: outputgericht","03A02"]
[null,"Persoonlijke verzorging regulier: inspanningsgericht","03A03"]
[null,"Persoonlijke verzorging specialistisch: inspanningsgericht","03A04"]
[null,"Persoonlijke verzorging regulier: outputgericht (licht)","03A05"]
[null,"Persoonlijke verzorging regulier: outputgericht (middel)","03A06"]
[null,"Persoonlijke verzorging regulier: outputgericht (zwaar)","03A07"]
[null,"Persoonlijke verzorging specialistisch: outputgericht (licht)","03A08"]
[null,"Persoonlijke verzorging specialistisch: outputgericht (middel)","03A09"]
[null,"Persoonlijke verzorging specialistisch: outputgericht (zwaar)","03A10"]
[null,"Persoonlijke verzorging regulier: inspanningsgericht (individueel)","03A11"]
[null,"Persoonlijke verzorging regulier: inspanningsgericht (op afstand)","03A12"]
[null,"Persoonlijke verzorging specialistisch: inspanningsgericht (individueel)","03A13"]
[null,"Persoonlijke verzorging specialistisch: inspanningsgericht (op afstand)","03A14"]
[null,"Persoonlijke verzorging laag tarief: inspanningsgericht","03A15"]
[4,"Kortdurend verblijf"]
[null,"Kortdurend verblijf: outputgericht","04A00"]
[null,"Kortdurend verblijf: inspanningsgericht","04A01"]
[null,"Kortdurend verblijf regulier: inspanningsgericht","04A02"]
[null,"Kortdurend verblijf deeltijdzorg: inspanningsgericht","04A03"]
[null,"Kortdurend verblijf: logeer/respijtzorg","04A04"]
[null,"Kortdurend verblijf: inspanningsgericht (licht)","04A05"]
[null,"Kortdurend verblijf: inspanningsgericht (middel)","04A06"]
[null,"Kortdurend verblijf: inspanningsgericht (middelzwaar)","04A07"]
[null,"Kortdurend verblijf: inspanningsgericht (zwaar)","04A08"]
[null,"Kortdurend verblijf: inspanningsgericht (extra zwaar)","04A09"]
[null,"Kortdurend verblijf specialistisch: inspanningsgericht","04A10"]
[null,"Deeltijdverblijf",4001]
[null,"Logeeropvang",4002]
[5,"Woondiensten"]
[null,"Huurderving","05A01"]
[null,"Keuring woonvoorziening","05A02"]
[null,"Tijdelijke huisvesting","05A03"]
[null,"Verhuizing en inrichting","05A04"]
[null,"Vrijmaken woning","05A05"]
[null,"Boodschappendienst","05A06"]
[null,"Maaltijdvoorziening","05A07"]
[null,"Huurderving",5001]
[null,"Keuring woonvoorziening",5002]
[null,"Tijdelijke huisvesting",5003]
[null,"Verhuizing en inrichting",5004]
[null,"Vrijmaken woning",5005]
[6,"Overige ondersteuning gericht op het individu of huishouden/gezin"]
[null,"Boodschappendienst",6001]
[null,"Maaltijdvoorziening",6002]
[7,"Dagbesteding"]
[null,"Dagbesteding regulier: outputgericht","07A01"]
[null,"Dagbesteding specialistisch: outputgericht","07A02"]
[null,"Dagbesteding regulier: inspanningsgericht","07A03"]
[null,"Dagbesteding specialistisch: inspanningsgericht","07A04"]
[null,"Dagbesteding regulier: outputgericht (licht)","07A05"]
[null,"Dagbesteding regulier: outputgericht (middel)","07A06"]
[null,"Dagbesteding regulier: outputgericht (zwaar)","07A07"]
[null,"Dagbesteding specialistisch: outputgericht (licht)","07A08"]
[null,"Dagbesteding specialistisch: outputgericht (middel)","07A09"]
[null,"Dagbesteding specialistisch: outputgericht (zwaar)","07A10"]
[null,"Dagbesteding regulier: inspanningsgericht (licht)","07A11"]
[null,"Dagbesteding regulier: inspanningsgericht (middel)","07A12"]
[null,"Dagbesteding regulier: inspanningsgericht (zwaar)","07A13"]
[null,"Dagbesteding specialistisch: inspanningsgericht (licht)","07A14"]
[null,"Dagbesteding specialistisch: inspanningsgericht (middel)","07A15"]
[null,"Dagbesteding specialistisch: inspanningsgericht (zwaar)","07A16"]
[null,"Vroegdoven: Dagactiviteit zintuiglijk gehandicapten (landelijke inkoop ZG)","07L01"]
[null,"Doofblinden: Dagactiviteit zintuiglijk gehandicapten (landelijke inkoop ZG)","07L02"]
[null,"Dagopvang bij beperking in de ontwikkeling",7001]
[null,"Dagopvang bij fysieke beperkingen",7002]
[null,"Dagopvang bij psychosociale beperkingen",7003]
[null,"Dagactiviteit zintuiglijk gehandicapten",7004]
[8,"Vervoerdiensten"]
[null,"Vervoer: outputgericht","08A01"]
[null,"Vervoer rolstoel: outputgericht","08A02"]
[null,"Vervoer regulier: inspanningsgericht","08A03"]
[null,"Vervoer rolstoel: inspanningsgericht","08A04"]
[null,"Vervoer: outputgericht (licht)","08A05"]
[null,"Vervoer: outputgericht (middel)","08A06"]
[null,"Vervoer: outputgericht (zwaar)","08A07"]
[null,"Vervoer rolstoel: outputgericht (licht)","08A08"]
[null,"Vervoer rolstoel: outputgericht (middel)","08A09"]
[null,"Vervoer rolstoel: outputgericht (zwaar)","08A10"]
[null,"Collectieve vervoerdienst rolstoel",8002]
[null,"Financiële tegemoetkoming vervoer",8003]
[null,"Individueel rolstoelvervoer",8004]
[null,"Individueel vervoer",8005]
[null,"Rijles scootmobiel",8006]
[null,"Vervoer naar dagopvang",8007]
[null,"Vervoer begeleiding naar locatie Volwassenen 0 -10 kilometer : Inspanningsgericht","08L01"]
[null,"Vervoer begeleiding naar locatie Volwassenen 11 -30 kilometer: Inspanningsgericht","08L02"]
[null,"Vervoer begeleiding naar locatie Volwassenen 31 -50 kilometer: Inspanningsgericht","08L03"]
[null,"Vervoer begeleiding naar locatie Volwassenen >= 51 kilometer: Inspanningsgericht","08L04"]
[null,"Vervoer begeleiding naar locatie Volwassenen met rolstoel 0 -10 kilometer: Inspanningsgericht","08L05"]
[null,"Vervoer begeleiding naar locatie Volwassenen met rolstoel 11 -30 kilometer: Inspanningsgericht","08L06"]
[null,"Vervoer begeleiding naar locatie Volwassenen met rolstoel 31 -50 kilometer: Inspanningsgericht","08L07"]
[null,"Vervoer begeleiding naar locatie Volwassenen met rolstoel >= 51 kilometer: Inspanningsgericht","08L08"]
[9,"Overige groepsgerichte ondersteuning"]
[10,"Overige maatwerk arrangementen"]
[null,"Overige maatwerkarrangementen","10A00"]
[null,"Maatwerkarrangement ggz intramuraal","10A01"]
[null,"Maatwerkarrangement ggz extramuraal","10A02"]
[null,"Maatwerkarrangement zintuigelijk gehandicapten","10A03"]
[null,"Maatwerkarrangement verstandelijk gehandicapten","10A04"]
[null,"Maatwerkarrangement gehandicapten","10A05"]
[null,"Maatwerkarrangement ouderen","10A06"]
[null,"Maatwerkarrangement ggz intramuraal (licht)","10A07"]
[null,"Maatwerkarrangement ggz intramuraal (middel)","10A08"]
[null,"Maatwerkarrangement ggz intramuraal (middelzwaar)","10A09"]
[null,"Maatwerkarrangement ggz intramuraal (zwaar)","10A10"]
[null,"Maatwerkarrangement ggz intramuraal (extra zwaar)","10A11"]
[null,"Maatwerkarrangement ggz extramuraal (licht)","10A12"]
[null,"Maatwerkarrangement ggz extramuraal (middel)","10A13"]
[null,"Maatwerkarrangement ggz extramuraal (middelzwaar)","10A14"]
[null,"Maatwerkarrangement ggz extramuraal (zwaar)","10A15"]
[null,"Maatwerkarrangement ggz extramuraal (extra zwaar)","10A16"]
[null,"Maatwerkarrangement zintuigelijk gehandicapten (licht)","10A17"]
[null,"Maatwerkarrangement zintuigelijk gehandicapten (middel)","10A18"]
[null,"Maatwerkarrangement zintuigelijk gehandicapten (middelzwaar)","10A19"]
[null,"Maatwerkarrangement zintuigelijk gehandicapten (zwaar)","10A20"]
[null,"Maatwerkarrangement zintuigelijk gehandicapten (extra zwaar)","10A21"]
[null,"Maatwerkarrangement verstandelijk gehandicapten (licht)","10A22"]
[null,"Maatwerkarrangement verstandelijk gehandicapten (middel)","10A23"]
[null,"Maatwerkarrangement verstandelijk gehandicapten (middelzwaar)","10A24"]
[null,"Maatwerkarrangement verstandelijk gehandicapten (zwaar)","10A25"]
[null,"Maatwerkarrangement verstandelijk gehandicapten (extra zwaar)","10A26"]
[null,"Maatwerkarrangement gehandicapten (licht)","10A27"]
[null,"Maatwerkarrangement gehandicapten (middel)","10A28"]
[null,"Maatwerkarrangement gehandicapten (middelzwaar)","10A29"]
[null,"Maatwerkarrangement gehandicapten (zwaar)","10A30"]
[null,"Maatwerkarrangement gehandicapten (extra zwaar)","10A31"]
[null,"Maatwerkarrangement ouderen (licht)","10A32"]
[null,"Maatwerkarrangement ouderen (middel)","10A33"]
[null,"Maatwerkarrangement ouderen (middelzwaar)","10A34"]
[null,"Maatwerkarrangement ouderen (zwaar)","10A35"]
[null,"Maatwerkarrangement ouderen (extra zwaar)","10A36"]
[null,"Zelfstandig leven 1 (licht)","10A37"]
[null,"Zelfstandig leven 1 (middel)","10A38"]
[null,"Zelfstandig leven 1 (zwaar)","10A39"]
[null,"Zelfstandig leven 2 (licht)","10A40"]
[null,"Zelfstandig leven 2 (middel)","10A41"]
[null,"Zelfstandig leven 2 (zwaar)","10A42"]
[null,"Zelfstandig leven 3 (licht)","10A43"]
[null,"Zelfstandig leven 3 (middel)","10A44"]
[null,"Zelfstandig leven 3 (zwaar)","10A45"]
[null,"Maatschappelijke deelname 1 (licht)","10A46"]
[null,"Maatschappelijke deelname 1 (middel)","10A47"]
[null,"Maatschappelijke deelname 1 (zwaar)","10A48"]
[null,"Maatschappelijke deelname 2 (licht)","10A49"]
[null,"Maatschappelijke deelname 2 (middel)","10A50"]
[null,"Maatschappelijke deelname 2 (zwaar)","10A51"]
[null,"Maatschappelijke deelname 3 (licht)","10A52"]
[null,"Maatschappelijke deelname 3 (middel)","10A53"]
[null,"Maatschappelijke deelname 3 (zwaar)","10A54"]
[null,"Zelfstandig leven 1 (middelzwaar): outputgericht","10A55"]
[null,"Zelfstandig leven 1 (extra zwaar): outputgericht","10A56"]
[null,"Zelfstandig leven 2 (middelzwaar): outputgericht","10A57"]
[null,"Zelfstandig leven 2 (extra zwaar): outputgericht","10A58"]
[null,"Zelfstandig leven 3 (licht): outputgericht","10A59"]
[null,"Zelfstandig leven 3 (extra zwaar): outputgericht","10A60"]
[null,"Maatschappelijke deelname 1 (middelzwaar): outputgericht","10A61"]
[null,"Maatschappelijke deelname 1 (extra zwaar): outputgericht","10A62"]
[null,"Maatschappelijke deelname 2 (middelzwaar): outputgericht","10A63"]
[null,"Maatschappelijke deelname 2 (extra zwaar): outputgericht","10A64"]
[null,"Maatschappelijke deelname 3 (middelzwaar): outputgericht","10A65"]
[null,"Maatschappelijke deelname 3 (extra zwaar): outputgericht","10A66"]
[11,"Rolstoelen"]
[null,"Accessoires rolstoel","11A01"]
[null,"Elektrische rolstoel","11A02"]
[null,"Handmatig bewogen rolstoel","11A03"]
[null,"Individuele aanpassing rolstoel","11A04"]
[null,"Onderhoud en reparatie","11A05"]
[null,"Sport rolstoel","11A06"]
[null,"Werkstoelen","11A07"]
[null,"Accessoires rolstoel",11001]
[null,"Elektrische rolstoel",11002]
[null,"Handmatig bewogen rolstoel",11003]
[null,"Individuele aanpassing rolstoel",11004]
[null,"Onderhoud en reparatie",11005]
[null,"Sport rolstoel",11006]
[null,"Werkstoelen",11007]
[12,"Vervoervoorzieningen"]
[null,"Aangepaste fietsen","12A01"]
[null,"Aanpassing vervoermiddel","12A02"]
[null,"Accessoires vervoersvoorziening","12A03"]
[null,"Ander verplaatsingsmiddel kinderen","12A04"]
[null,"Open elektrische buitenwagen (scootmobiel)","12A05"]
[null,"Gesloten buitenwagen","12A06"]
[null,"Ander verplaatsingsmiddel volwassenen","12A07"]
[null,"Bruikleenauto","12A08"]
[null,"Collectieve vervoervoorziening","12A09"]
[null,"Collectieve vervoervoorziening rolstoel","12A10"]
[null,"Driewielfietsen","12A11"]
[null,"Financiële tegemoetkoming vervoervoorziening","12A12"]
[null,"Onderhoud en reparatie","12A13"]
[null,"Verzekeringen","12A14"]
[null,"Aangepaste fietsen",12001]
[null,"Aanpassing vervoermiddel",12002]
[null,"Accessoires vervoersvoorziening",12003]
[null,"Ander verplaatsingsmiddel kinderen",12004]
[null,"Open elektrische buitenwagen (scootmobiel)",12005]
[null,"Gesloten buitenwagen",12006]
[null,"Ander verplaatsingsmiddel volwassenen",12007]
[null,"Bruikleenauto",12008]
[null,"Collectieve vervoervoorziening",12009]
[null,"Collectieve vervoervoorziening rolstoel",12010]
[null,"Driewielfietsen",12011]
[null,"Financiële tegemoetkoming vervoervoorziening",12012]
[null,"Onderhoud en reparatie",12013]
[null,"Verzekeringen",12014]
[13,"Woonvoorzieningen"]
[null,"Financiële tegemoetkoming woningaanpassing","13A01"]
[null,"Onroerende woonvoorziening","13A02"]
[null,"Roerende woonvoorziening","13A03"]
[null,"Traplift/tillift","13A04"]
[null,"Verwijderen woonvoorziening","13A05"]
[null,"Onderhoud en reparatie","13A06"]
[null,"Financiële tegemoetkoming woningaanpassing",13001]
[null,"Onroerende woonvoorziening",13002]
[null,"Roerende woonvoorziening",13003]
[null,"Traplift/tillift",13004]
[null,"Verwijderen woonvoorziening",13005]
[null,"Onderhoud en reparatie",13006]
[14,"Overige hulpmiddelen"]
[15,"Beschermd wonen"]
[null,"Beschermd wonen: outputgericht","15A01"]
[null,"Beschermd wonen: inspanningsgericht","15A02"]
[null,"Beschermd wonen: outputgericht (licht)","15A03"]
[null,"Beschermd wonen: outputgericht (middel)","15A04"]
[null,"Beschermd wonen: outputgericht (middelzwaar)","15A05"]
[null,"Beschermd wonen: outputgericht (zwaar)","15A06"]
[null,"Beschermd wonen: outputgericht (extra zwaar)","15A07"]
[null,"Beschermd wonen: inspanningsgericht (licht)","15A08"]
[null,"Beschermd wonen: inspanningsgericht (middel)","15A09"]
[null,"Beschermd wonen: inspanningsgericht (middelzwaar)","15A10"]
[null,"Beschermd wonen: inspanningsgericht (zwaar)","15A11"]
[null,"Beschermd wonen: inspanningsgericht (extra zwaar)","15A12"]
[null,"Per dag VPT 1GGZ-C excl.BH excl.DB","15A13"]
[null,"Per dag VPT 1GGZ-C excl.BH incl.DB","15A14"]
[null,"Per dag VPT 2GGZ-C excl.BH excl.DB","15A15"]
[null,"Per dag VPT 2GGZ-C excl.BH incl.DB","15A16"]
[null,"Per dag VPT 3GGZ-C excl.BH excl.DB","15A17"]
[null,"Per dag VPT 3GGZ-C excl.BH incl.DB","15A18"]
[null,"Per dag VPT 4GGZ-C excl.BH excl.DB","15A19"]
[null,"Per dag VPT 4GGZ-C excl.BH incl.DB","15A20"]
[null,"Per dag VPT 5GGZ-C excl.BH excl.DB","15A21"]
[null,"Per dag VPT 5GGZ-C excl.BH incl.DB","15A22"]
[null,"Per dag VPT 6GGZ-C excl.BH excl.DB","15A23"]
[null,"Per dag VPT 6GGZ-C excl.BH incl.DB","15A24"]
[null,"Per dag ZZP 1GGZ-C excl.BH excl.DB","15A25"]
[null,"Per dag ZZP 1GGZ-C excl.BH incl.DB","15A26"]
[null,"Per dag ZZP 2GGZ-C excl.BH excl.DB","15A29"]
[null,"Per dag ZZP 2GGZ-C excl.BH incl.DB","15A30"]
[null,"Per dag ZZP 3GGZ-C excl.BH excl.DB","15A33"]
[null,"Per dag ZZP 3GGZ-C excl.BH incl.DB","15A34"]
[null,"Per dag ZZP 4GGZ-C excl.BH excl.DB","15A37"]
[null,"Per dag ZZP 4GGZ-C excl.BH incl.DB","15A38"]
[null,"Per dag ZZP 5GGZ-C excl.BH excl.DB","15A41"]
[null,"Per dag ZZP 5GGZ-C excl.BH incl.DB","15A42"]
[null,"Per dag ZZP 6GGZ-C excl.BH excl.DB","15A45"]
[null,"Per dag ZZP 6GGZ-C excl.BH incl.DB","15A46"]
[null,"Beschermd wonen afwezigheidsdag: inspanningsgericht","15A49"]
[16,"Opvang"]
[null,"Opvang: outputgericht","16A01"]
[null,"Opvang: inspanningsgericht","16A02"]
[null,"Opvang: outputgericht (licht)","16A03"]
[null,"Opvang: outputgericht (middel)","16A04"]
[null,"Opvang: outputgericht (zwaar)","16A05"]
[null,"Dak- en thuislozen opvang",16001]
[null,"Vrouwenopvang",16002]
[17,"Spoedopvang"]
[null,"Spoedopvang: outputgericht","17A00"]
[null,"Spoedopvang: inspanningsgericht","17A01"]
[null,"Crisisopvang",17001]

{"sheet":"Versie","index":12,"n_rows":1,"n_cols":1,"rows_kept":1,"cut":false,"hidden":false,"merged":[]}
["24-11-2022/amd"]